Publisher Label,Publisher URI,"Supplier ID","Supplier","Invoice No.","Amount (£)","Purpose","Transaction Number","Payment Date","Organisational Unit","Cost Centre(T)","Internal Category Number"
"Wolverhampton City Council","http://opendatacommunities.org/id/metropolitan-district-council/wolverhampton","702450","GO Carz","08898","660.00","Client Transport","130201547","10/01/2018","School Planning & Resources","Secondary- Transport","R3042"
"Wolverhampton City Council","http://opendatacommunities.org/id/metropolitan-district-council/wolverhampton","702450","GO Carz","08733","8.40","Client Transport","130199549","05/01/2018","Emergency Duty Team","Emergency Duty Team","R3042"
"Wolverhampton City Council","http://opendatacommunities.org/id/metropolitan-district-council/wolverhampton","702450","GO Carz","09361","84.72","Client Transport","130203311","26/01/2018","Emergency Duty Team","Emergency Duty Team","R3042"
"Wolverhampton City Council","http://opendatacommunities.org/id/metropolitan-district-council/wolverhampton","702450","GO Carz","04604","64.44","Client Transport","130203810","31/01/2018","Child Protection","Childrens with Disabilities Team","R3042"
"Wolverhampton City Council","http://opendatacommunities.org/id/metropolitan-district-council/wolverhampton","702450","GO Carz","07330","318.60","Client Transport","130203816","31/01/2018","Child Protection","Childrens with Disabilities Team","R3042"
"Wolverhampton City Council","http://opendatacommunities.org/id/metropolitan-district-council/wolverhampton","702450","GO Carz","05630","20.52","Client Transport","130203812","31/01/2018","Child Protection","Childrens with Disabilities Team","R3042"
"Wolverhampton City Council","http://opendatacommunities.org/id/metropolitan-district-council/wolverhampton","702450","GO Carz","05707","43.12","Client Transport","130203813","31/01/2018","Child Protection","Childrens with Disabilities Team","R3042"
"Wolverhampton City Council","http://opendatacommunities.org/id/metropolitan-district-council/wolverhampton","702450","GO Carz","08628","4.30","Client Transport","130199547","03/01/2018","Child Protection","Head of Service - CINCP","R3042"
"Wolverhampton City Council","http://opendatacommunities.org/id/metropolitan-district-council/wolverhampton","702450","GO Carz","09378","89.16","Client Transport","130203507","31/01/2018","Child Protection","CIN/CP Social Work Unit - Area 3","R3042"
"Wolverhampton City Council","http://opendatacommunities.org/id/metropolitan-district-council/wolverhampton","702452","Central Workwear","4079","1,757.30","Laundry Expenses","130200499","17/01/2018","Catering","Education Catering - General Overheads","R4202"
"Wolverhampton City Council","http://opendatacommunities.org/id/metropolitan-district-council/wolverhampton","702452","Central Workwear","4075","153.55","Laundry Expenses","130199550","17/01/2018","Visitor Economy","Catering Overhead Account","R4202"
"Wolverhampton City Council","http://opendatacommunities.org/id/metropolitan-district-council/wolverhampton","702456","Centre For Public Scrutiny","41002904","398.00","Training Expenses","130199551","12/01/2018","Human Resources","Centralised Training","R1650"
"Wolverhampton City Council","http://opendatacommunities.org/id/metropolitan-district-council/wolverhampton","702477","Changing Our Lives","2017/021","12,494.75","TPP - Social Care Support Services","130202693","31/01/2018","Head of Commissioning","Commissioning Disabilities","R5501"
"Wolverhampton City Council","http://opendatacommunities.org/id/metropolitan-district-council/wolverhampton","702519","Child And Family Training Limited","894","735.00","Training Expenses","130199164","03/01/2018","Human Resources","Workforce Development","R1650"
"Wolverhampton City Council","http://opendatacommunities.org/id/metropolitan-district-council/wolverhampton","702530","Chipside Limited","S180535","160.00","Computing - Purchase of Hardware","130199553","10/01/2018","Parking Services","Parking Enforcement","R4530"
"Wolverhampton City Council","http://opendatacommunities.org/id/metropolitan-district-council/wolverhampton","702530","Chipside Limited","S180810","160.00","Computing - Purchase of Hardware","130202576","26/01/2018","Parking Services","Parking Enforcement","R4530"
"Wolverhampton City Council","http://opendatacommunities.org/id/metropolitan-district-council/wolverhampton","702530","Chipside Limited","S180529","813.00","Computing - Purchase of Hardware","130199552","10/01/2018","Parking Services","Parking Enforcement","R4530"
"Wolverhampton City Council","http://opendatacommunities.org/id/metropolitan-district-council/wolverhampton","702530","Chipside Limited","SI80786","648.60","Computing - Purchase of Hardware","130202577","26/01/2018","Parking Services","Parking Enforcement","R4530"
"Wolverhampton City Council","http://opendatacommunities.org/id/metropolitan-district-council/wolverhampton","702543","Chubb Fire & Security Limited","5716543","257.95","Construction and Conversion","130185137","31/01/2018","","Westside","C1100"
"Wolverhampton City Council","http://opendatacommunities.org/id/metropolitan-district-council/wolverhampton","702543","Chubb Fire & Security Limited","6722902","251.44","Services - Security","130199555","10/01/2018","Bereavement Services","Cemeteries","R4405"
"Wolverhampton City Council","http://opendatacommunities.org/id/metropolitan-district-council/wolverhampton","702543","Chubb Fire & Security Limited","6735748","825.00","Services - Security","130203313","31/01/2018","Bereavement Services","Cemeteries","R4405"
"Wolverhampton City Council","http://opendatacommunities.org/id/metropolitan-district-council/wolverhampton","702561","Appello","PSMI910102","6,025.46","Equipment - R & M","130202579","24/01/2018","Independent Living Service","Telecare","R4003"
"Wolverhampton City Council","http://opendatacommunities.org/id/metropolitan-district-council/wolverhampton","702561","Appello","PSMI896587","185.00","Equipment - R & M","130202578","24/01/2018","Independent Living Service","Telecare","R4003"
"Wolverhampton City Council","http://opendatacommunities.org/id/metropolitan-district-council/wolverhampton","702579","City Of Wolverhampton College","100022","840.00","Training Expenses","130201325","31/01/2018","Audit Services","Health & Safety","R1650"
"Wolverhampton City Council","http://opendatacommunities.org/id/metropolitan-district-council/wolverhampton","702579","City Of Wolverhampton College","100024","420.00","Training Expenses","130201327","31/01/2018","Audit Services","Health & Safety","R1650"
"Wolverhampton City Council","http://opendatacommunities.org/id/metropolitan-district-council/wolverhampton","702579","City Of Wolverhampton College","INV021136","4,180.00","Training Expenses","130200911","05/01/2018","Youth Offending","Bilston Junior Attendance Centre","R1650"
"Wolverhampton City Council","http://opendatacommunities.org/id/metropolitan-district-council/wolverhampton","702579","City Of Wolverhampton College","100023","420.00","Training Expenses","130201326","31/01/2018","Audit Services","Health & Safety","R1650"
"Wolverhampton City Council","http://opendatacommunities.org/id/metropolitan-district-council/wolverhampton","702607","Clearview Wales","1846/t bacs rej","280.00","Window Cleaning","130202374","17/01/2018","School Planning & Resources","Towers Outdoor Education Centre","R2701"
"Wolverhampton City Council","http://opendatacommunities.org/id/metropolitan-district-council/wolverhampton","702607","Clearview Wales","1779/Towers bacs rej","210.00","Window Cleaning","130202373","17/01/2018","School Planning & Resources","Towers Outdoor Education Centre","R2701"
"Wolverhampton City Council","http://opendatacommunities.org/id/metropolitan-district-council/wolverhampton","702610","Clearwater Technology Limited","SIN148165","700.00","R&M - Departmental planned (external)","130199557","03/01/2018","Maintenance Programme","Civic Centre Repairs & Maintenance","R2001"
"Wolverhampton City Council","http://opendatacommunities.org/id/metropolitan-district-council/wolverhampton","702643","Cobalt Telephone Technologies Limited","C171213","18,700.59","Services - Bank Charges","130201865","31/01/2018","Central Corporate Budgets","Corporate Management","R4403"
"Wolverhampton City Council","http://opendatacommunities.org/id/metropolitan-district-council/wolverhampton","702643","Cobalt Telephone Technologies Limited","R171231-137","969.40","Computing - Maint Agreements","130201196","10/01/2018","Parking Services","Car Parks Operational Staff","R4534"
"Wolverhampton City Council","http://opendatacommunities.org/id/metropolitan-district-council/wolverhampton","702643","Cobalt Telephone Technologies Limited","P180175","106.00","Equipment - R & M","130203822","31/01/2018","Parking Services","Snow Hill Car Park","R4003"
"Wolverhampton City Council","http://opendatacommunities.org/id/metropolitan-district-council/wolverhampton","702643","Cobalt Telephone Technologies Limited","P180150","260.00","Equipment - R & M","130203821","31/01/2018","Parking Services","Car Parks Operational Staff","R4003"
"Wolverhampton City Council","http://opendatacommunities.org/id/metropolitan-district-council/wolverhampton","702643","Cobalt Telephone Technologies Limited","P180187","260.00","Equipment - R & M","130203823","31/01/2018","Parking Services","Car Parks Operational Staff","R4003"
"Wolverhampton City Council","http://opendatacommunities.org/id/metropolitan-district-council/wolverhampton","702647","Coca-Cola Enterprises Limited","9104020294","20.00","Provisions (Resale)","130200802","17/01/2018","Leisure Services","Bert Williams Leisure Centre Caf�","R4102"
"Wolverhampton City Council","http://opendatacommunities.org/id/metropolitan-district-council/wolverhampton","702648","Cochlear UK","1570940","280.00","Equipment - Purchase","130199558","03/01/2018","Standards and Vulnerable Pupils","SEN Sensory Inclusion","R4000"
"Wolverhampton City Council","http://opendatacommunities.org/id/metropolitan-district-council/wolverhampton","702658","Coin-A-Drink Limited","354091 - 1","413.20","Provisions (Not for resale)","130203092","24/01/2018","Early Intervention","EIP Locality 6 � Dovecotes","R4101"
"Wolverhampton City Council","http://opendatacommunities.org/id/metropolitan-district-council/wolverhampton","702658","Coin-A-Drink Limited","354091 - 1","-413.20","Provisions (Not for resale)","130203092","24/01/2018","Early Intervention","EIP Locality 6 � Dovecotes","R4101"
"Wolverhampton City Council","http://opendatacommunities.org/id/metropolitan-district-council/wolverhampton","702658","Coin-A-Drink Limited","354091 - 1","371.89","Provisions (Not for resale)","130203092","24/01/2018","Early Intervention","EIP Locality 6 � Dovecotes","R4101"
"Wolverhampton City Council","http://opendatacommunities.org/id/metropolitan-district-council/wolverhampton","702658","Coin-A-Drink Limited","354914 - 1","24.43","Equipment - Hire","130202694","24/01/2018","Early Intervention","EIP Locality 6 � Dovecotes","R4001"
"Wolverhampton City Council","http://opendatacommunities.org/id/metropolitan-district-council/wolverhampton","702658","Coin-A-Drink Limited","356332 - 1","27.73","Equipment - Hire","130201548","24/01/2018","Bereavement Services","Crematorium","R4001"
"Wolverhampton City Council","http://opendatacommunities.org/id/metropolitan-district-council/wolverhampton","702658","Coin-A-Drink Limited","355738 - 1","24.43","Equipment - Hire","130201063","17/01/2018","Early Intervention","EIP Locality 6 � Dovecotes","R4001"
"Wolverhampton City Council","http://opendatacommunities.org/id/metropolitan-district-council/wolverhampton","702662","Colin Davies","05/90/17","60.80","Services - Professional Fees","130199561","12/01/2018","Child Protection","Head of Service - CINCP","R4400"
"Wolverhampton City Council","http://opendatacommunities.org/id/metropolitan-district-council/wolverhampton","702662","Colin Davies","05/94/17","61.25","Services - Professional Fees","130201328","12/01/2018","Child Protection","Head of Service - CINCP","R4400"
"Wolverhampton City Council","http://opendatacommunities.org/id/metropolitan-district-council/wolverhampton","702662","Colin Davies","05/92/17","67.95","Services - Professional Fees","130199562","12/01/2018","Child Protection","Head of Service - CINCP","R4400"
"Wolverhampton City Council","http://opendatacommunities.org/id/metropolitan-district-council/wolverhampton","702684","Commercial Collectn Serv/Ccs Collect","90954","5.72","Services - Professional Fees","130203664","31/01/2018","Revenues & Benefits","Debt Management","R4400"
"Wolverhampton City Council","http://opendatacommunities.org/id/metropolitan-district-council/wolverhampton","702685","Digraph Transport Supplies Ltd","BRIV059706","61.80","Equipment - Purchase","190414550","24/01/2018","Fleet Services","Fleet Management","R4000"
"Wolverhampton City Council","http://opendatacommunities.org/id/metropolitan-district-council/wolverhampton","702685","Digraph Transport Supplies Ltd","BRIV059678","55.00","Equipment - Purchase","190415702","26/01/2018","Fleet Services","Fleet Management","R4000"
"Wolverhampton City Council","http://opendatacommunities.org/id/metropolitan-district-council/wolverhampton","702685","Digraph Transport Supplies Ltd","BRIV059954","186.64","Equipment - Purchase","190414551","24/01/2018","Fleet Services","Fleet Management","R4000"
"Wolverhampton City Council","http://opendatacommunities.org/id/metropolitan-district-council/wolverhampton","702685","Digraph Transport Supplies Ltd","BRIV059954","162.00","Equipment - Purchase","190414551","24/01/2018","Fleet Services","Fleet Management","R4000"
"Wolverhampton City Council","http://opendatacommunities.org/id/metropolitan-district-council/wolverhampton","702685","Digraph Transport Supplies Ltd","BRIV059191","245.68","Equipment - Purchase","190410180","10/01/2018","Fleet Services","Fleet Management","R4000"
"Wolverhampton City Council","http://opendatacommunities.org/id/metropolitan-district-council/wolverhampton","702685","Digraph Transport Supplies Ltd","BRIV059677","200.00","Equipment - Purchase","190415701","26/01/2018","Fleet Services","Fleet Management","R4000"
"Wolverhampton City Council","http://opendatacommunities.org/id/metropolitan-district-council/wolverhampton","702685","Digraph Transport Supplies Ltd","BRIV059677","450.00","Equipment - Purchase","190415701","26/01/2018","Fleet Services","Fleet Management","R4000"
"Wolverhampton City Council","http://opendatacommunities.org/id/metropolitan-district-council/wolverhampton","702685","Digraph Transport Supplies Ltd","BRIV059616","238.66","Equipment - Purchase","190414549","24/01/2018","Fleet Services","Fleet Management","R4000"
"Wolverhampton City Council","http://opendatacommunities.org/id/metropolitan-district-council/wolverhampton","702685","Digraph Transport Supplies Ltd","BRIV059691","276.52","Equipment - Purchase","190415703","26/01/2018","Fleet Services","Fleet Management","R4000"
"Wolverhampton City Council","http://opendatacommunities.org/id/metropolitan-district-council/wolverhampton","702690","Communication Plus (Faircom Plus)","14144","120.00","TPP - Social Care Support Services","130200912","05/01/2018","Child Protection","Childrens with Disabilities Team","R5501"
"Wolverhampton City Council","http://opendatacommunities.org/id/metropolitan-district-council/wolverhampton","702690","Communication Plus (Faircom Plus)","14349","80.00","Services - Professional Fees","130199567","10/01/2018","Early Intervention","EIP Locality 5 � Whitmore Reans","R4400"
"Wolverhampton City Council","http://opendatacommunities.org/id/metropolitan-district-council/wolverhampton","702690","Communication Plus (Faircom Plus)","14272","80.00","TPP - Social Care Support Services","130200913","05/01/2018","Child Protection","Childrens with Disabilities Team","R5501"
"Wolverhampton City Council","http://opendatacommunities.org/id/metropolitan-district-council/wolverhampton","702690","Communication Plus (Faircom Plus)","14300","240.00","Services - Translation fees","130199563","17/01/2018","Governance Services","Equalities","R4406"
"Wolverhampton City Council","http://opendatacommunities.org/id/metropolitan-district-council/wolverhampton","702690","Communication Plus (Faircom Plus)","14393","80.00","TPP - Social Care Support Services","130201866","31/01/2018","Audit Services","Health & Safety","R5501"
"Wolverhampton City Council","http://opendatacommunities.org/id/metropolitan-district-council/wolverhampton","702690","Communication Plus (Faircom Plus)","14374","80.00","TPP - Social Care Support Services","130201330","24/01/2018","Adults Assessment & Care Management West","Adult Services � West","R5501"
"Wolverhampton City Council","http://opendatacommunities.org/id/metropolitan-district-council/wolverhampton","702690","Communication Plus (Faircom Plus)","14352","160.00","TPP - Social Care Support Services","130200914","10/01/2018","Child Protection","Childrens with Disabilities Team","R5501"
"Wolverhampton City Council","http://opendatacommunities.org/id/metropolitan-district-council/wolverhampton","702690","Communication Plus (Faircom Plus)","14327","80.00","TPP - Social Care Support Services","130199565","05/01/2018","Adults Assessment & Care Management West","Adult Services � West","R5501"
"Wolverhampton City Council","http://opendatacommunities.org/id/metropolitan-district-council/wolverhampton","702690","Communication Plus (Faircom Plus)","14262","80.00","TPP - Social Care Support Services","130201064","10/01/2018","Child Protection","Childrens with Disabilities Team","R5501"
"Wolverhampton City Council","http://opendatacommunities.org/id/metropolitan-district-council/wolverhampton","702690","Communication Plus (Faircom Plus)","14328","80.00","TPP - Social Care Support Services","130199566","05/01/2018","Adults Assessment & Care Management North","Adult Services � North","R5501"
"Wolverhampton City Council","http://opendatacommunities.org/id/metropolitan-district-council/wolverhampton","702690","Communication Plus (Faircom Plus)","14320","192.00","TPP - Social Care Support Services","130202695","26/01/2018","Child Protection","Childrens with Disabilities Team","R5501"
"Wolverhampton City Council","http://opendatacommunities.org/id/metropolitan-district-council/wolverhampton","702690","Communication Plus (Faircom Plus)","14373","80.00","TPP - Social Care Support Services","130201329","24/01/2018","Adults Assessment & Care Management West","Adult Services � West","R5501"
"Wolverhampton City Council","http://opendatacommunities.org/id/metropolitan-district-council/wolverhampton","702690","Communication Plus (Faircom Plus)","14280","80.00","TPP - Social Care Support Services","130201065","10/01/2018","Child Protection","Childrens with Disabilities Team","R5501"
"Wolverhampton City Council","http://opendatacommunities.org/id/metropolitan-district-council/wolverhampton","702697","Community Transport","19023","1,169.28","Client Transport","130202076","17/01/2018","School Planning & Resources","Special - Transport","R3042"
"Wolverhampton City Council","http://opendatacommunities.org/id/metropolitan-district-council/wolverhampton","702697","Community Transport","19024","1,317.60","Client Transport","130202077","17/01/2018","School Planning & Resources","Special - Transport","R3042"
"Wolverhampton City Council","http://opendatacommunities.org/id/metropolitan-district-council/wolverhampton","702697","Community Transport","19022","1,317.60","Client Transport","130202075","17/01/2018","School Planning & Resources","Special - Transport","R3042"
"Wolverhampton City Council","http://opendatacommunities.org/id/metropolitan-district-council/wolverhampton","702708","Complete Care Shop Limited","1690474","108.29","Equipment - Purchase","130202433","17/01/2018","Older People Provider Services","Older People Provider Management","R4000"
"Wolverhampton City Council","http://opendatacommunities.org/id/metropolitan-district-council/wolverhampton","702708","Complete Care Shop Limited","1554372","59.80","Services - Supplies and Services to service users","130201827","24/01/2018","Older People Provider Services","Bradley Lodge Resource Centre","R4408"
"Wolverhampton City Council","http://opendatacommunities.org/id/metropolitan-district-council/wolverhampton","702708","Complete Care Shop Limited","1758508","219.94","Equipment - Purchase","130199571","12/01/2018","Learning Disability Provider","Learning Disabilities Management","R4000"
"Wolverhampton City Council","http://opendatacommunities.org/id/metropolitan-district-council/wolverhampton","702708","Complete Care Shop Limited","1739606","99.95","Equipment - Purchase","130198539","03/01/2018","Independent Living Service","Independent Living Service","R4000"
"Wolverhampton City Council","http://opendatacommunities.org/id/metropolitan-district-council/wolverhampton","702713","Compton Hospice","ED3580/17","1,350.00","Training Expenses","130199166","03/01/2018","Human Resources","Workforce Development","R1650"
"Wolverhampton City Council","http://opendatacommunities.org/id/metropolitan-district-council/wolverhampton","702723","Concept Elevators (UK) Ltd","NV141455","36.00","R&M - Departmental planned (external)","130201066","10/01/2018","Maintenance Programme","Centralised R&M","R2001"
"Wolverhampton City Council","http://opendatacommunities.org/id/metropolitan-district-council/wolverhampton","702723","Concept Elevators (UK) Ltd","NV142324","36.00","R&M - Departmental planned (external)","130203512","31/01/2018","Maintenance Programme","Centralised R&M","R2001"
"Wolverhampton City Council","http://opendatacommunities.org/id/metropolitan-district-council/wolverhampton","702723","Concept Elevators (UK) Ltd","NV141454","36.00","R&M - Departmental planned (external)","130200915","10/01/2018","Maintenance Programme","Centralised R&M","R2001"
"Wolverhampton City Council","http://opendatacommunities.org/id/metropolitan-district-council/wolverhampton","702723","Concept Elevators (UK) Ltd","NV141181","63.38","R&M - Departmental planned (external)","130199574","03/01/2018","Maintenance Programme","Centralised R&M","R2001"
"Wolverhampton City Council","http://opendatacommunities.org/id/metropolitan-district-council/wolverhampton","702723","Concept Elevators (UK) Ltd","NV140984","216.00","R&M - Departmental planned (external)","130199391","03/01/2018","Maintenance Programme","Centralised R&M","R2001"
"Wolverhampton City Council","http://opendatacommunities.org/id/metropolitan-district-council/wolverhampton","702723","Concept Elevators (UK) Ltd","NV141166","27.00","R&M - Departmental planned (external)","130199573","10/01/2018","Maintenance Programme","Centralised R&M","R2001"
"Wolverhampton City Council","http://opendatacommunities.org/id/metropolitan-district-council/wolverhampton","702723","Concept Elevators (UK) Ltd","NV141166","157.85","R&M - Departmental planned (external)","130199573","10/01/2018","Maintenance Programme","Centralised R&M","R2001"
"Wolverhampton City Council","http://opendatacommunities.org/id/metropolitan-district-council/wolverhampton","702723","Concept Elevators (UK) Ltd","NV141166","31.15","R&M - Departmental planned (external)","130199573","10/01/2018","Maintenance Programme","Centralised R&M","R2001"
"Wolverhampton City Council","http://opendatacommunities.org/id/metropolitan-district-council/wolverhampton","702723","Concept Elevators (UK) Ltd","NV141314","72.00","R&M - Departmental planned (external)","130200623","03/01/2018","Maintenance Programme","Centralised R&M","R2001"
"Wolverhampton City Council","http://opendatacommunities.org/id/metropolitan-district-council/wolverhampton","702723","Concept Elevators (UK) Ltd","NV141253","90.00","R&M - Departmental planned (external)","130200622","03/01/2018","Maintenance Programme","Centralised R&M","R2001"
"Wolverhampton City Council","http://opendatacommunities.org/id/metropolitan-district-council/wolverhampton","702723","Concept Elevators (UK) Ltd","NV142235","45.00","R&M - Departmental planned (external)","130203511","31/01/2018","Maintenance Programme","Centralised R&M","R2001"
"Wolverhampton City Council","http://opendatacommunities.org/id/metropolitan-district-council/wolverhampton","702727","Concero UK Limited","INV-000000225","40.00","Equipment - Purchase","130201532","10/01/2018","Schools","Christ Church (Church of England) Junior School","R4000"
"Wolverhampton City Council","http://opendatacommunities.org/id/metropolitan-district-council/wolverhampton","702727","Concero UK Limited","INV-000000209","40.00","Equipment - Purchase","130201531","10/01/2018","Schools","Christ Church (Church of England) Junior School","R4000"
"Wolverhampton City Council","http://opendatacommunities.org/id/metropolitan-district-council/wolverhampton","702738","Connevans Limited","IN389299","1,205.59","Services - Assistive technology","130202580","19/01/2018","Standards and Vulnerable Pupils","SEN Sensory Inclusion","R4407"
"Wolverhampton City Council","http://opendatacommunities.org/id/metropolitan-district-council/wolverhampton","702741","MIR Sheward Musical Instrument repairs","2201","320.00","Services - Professional Fees","130200500","05/01/2018","Standards and Vulnerable Pupils","Music Support Team","R4400"
"Wolverhampton City Council","http://opendatacommunities.org/id/metropolitan-district-council/wolverhampton","702766","Cooper Mobile Services Ltd","12892","150.00","Hire of Vehicles","190414498","24/01/2018","Fleet Services","Fleet Management","R3200"
"Wolverhampton City Council","http://opendatacommunities.org/id/metropolitan-district-council/wolverhampton","702766","Cooper Mobile Services Ltd","12739","150.00","Hire of Vehicles","190414495","24/01/2018","Fleet Services","Fleet Management","R3200"
"Wolverhampton City Council","http://opendatacommunities.org/id/metropolitan-district-council/wolverhampton","702766","Cooper Mobile Services Ltd","12893","150.00","Hire of Vehicles","190414499","24/01/2018","Fleet Services","Fleet Management","R3200"
"Wolverhampton City Council","http://opendatacommunities.org/id/metropolitan-district-council/wolverhampton","702766","Cooper Mobile Services Ltd","39920","227.50","Insurance - General","130201331","24/01/2018","Audit Services","Motor Vehicles","R4962"
"Wolverhampton City Council","http://opendatacommunities.org/id/metropolitan-district-council/wolverhampton","702766","Cooper Mobile Services Ltd","39920","500.00","Insurance - General","130201331","24/01/2018","Environmental Maintenance","Ground Maintenance West","R4962"
"Wolverhampton City Council","http://opendatacommunities.org/id/metropolitan-district-council/wolverhampton","702766","Cooper Mobile Services Ltd","12832","150.00","Hire of Vehicles","190414496","24/01/2018","Fleet Services","Fleet Management","R3200"
"Wolverhampton City Council","http://opendatacommunities.org/id/metropolitan-district-council/wolverhampton","702766","Cooper Mobile Services Ltd","12891","150.00","Hire of Vehicles","190414497","24/01/2018","Fleet Services","Fleet Management","R3200"
"Wolverhampton City Council","http://opendatacommunities.org/id/metropolitan-district-council/wolverhampton","702786","Costa Ltd","A - PSI2358883","1,412.39","Provisions (Resale)","130201332","24/01/2018","Catering","Civic Centre Catering","R4102"
"Wolverhampton City Council","http://opendatacommunities.org/id/metropolitan-district-council/wolverhampton","702786","Costa Ltd","A - PSI2358883","-1,412.39","Provisions (Resale)","130201332","24/01/2018","Catering","Civic Centre Catering","R4102"
"Wolverhampton City Council","http://opendatacommunities.org/id/metropolitan-district-council/wolverhampton","702786","Costa Ltd","A - PSI2358883","382.22","Provisions (Resale)","130201332","24/01/2018","Catering","Civic Centre Catering","R4102"
"Wolverhampton City Council","http://opendatacommunities.org/id/metropolitan-district-council/wolverhampton","702786","Costa Ltd","A - PSI2358883","1,030.17","Provisions (Resale)","130201332","24/01/2018","Catering","Civic Centre Catering","R4102"
"Wolverhampton City Council","http://opendatacommunities.org/id/metropolitan-district-council/wolverhampton","702786","Costa Ltd","A - PSI2343896","193.05","Provisions (Not for resale)","130199577","10/01/2018","Leisure Services","WV Active Catering","R4101"
"Wolverhampton City Council","http://opendatacommunities.org/id/metropolitan-district-council/wolverhampton","702786","Costa Ltd","A - PSI2343896","216.47","Provisions (Not for resale)","130199577","10/01/2018","Leisure Services","WV Active Catering","R4101"
"Wolverhampton City Council","http://opendatacommunities.org/id/metropolitan-district-council/wolverhampton","702786","Costa Ltd","A - PSI2352853","77.72","Provisions (Not for resale)","130201067","17/01/2018","Leisure Services","WV Active Catering","R4101"
"Wolverhampton City Council","http://opendatacommunities.org/id/metropolitan-district-council/wolverhampton","702786","Costa Ltd","A - PSI2352853","228.58","Provisions (Not for resale)","130201067","17/01/2018","Leisure Services","WV Active Catering","R4101"
"Wolverhampton City Council","http://opendatacommunities.org/id/metropolitan-district-council/wolverhampton","702786","Costa Ltd","A - PSI2333995","342.38","Provisions (Not for resale)","130198711","10/01/2018","Leisure Services","WV Active Catering","R4101"
"Wolverhampton City Council","http://opendatacommunities.org/id/metropolitan-district-council/wolverhampton","702786","Costa Ltd","A-PSI2333998","573.61","Provisions (Resale)","130198712","03/01/2018","Catering","Civic Centre Catering","R4102"
"Wolverhampton City Council","http://opendatacommunities.org/id/metropolitan-district-council/wolverhampton","702786","Costa Ltd","A-PSI2333998","-573.61","Provisions (Resale)","130198712","03/01/2018","Catering","Civic Centre Catering","R4102"
"Wolverhampton City Council","http://opendatacommunities.org/id/metropolitan-district-council/wolverhampton","702786","Costa Ltd","A-PSI2333998","227.86","Provisions (Resale)","130198712","03/01/2018","Catering","Civic Centre Catering","R4102"
"Wolverhampton City Council","http://opendatacommunities.org/id/metropolitan-district-council/wolverhampton","702786","Costa Ltd","A-PSI2333998","345.75","Provisions (Resale)","130198712","03/01/2018","Catering","Civic Centre Catering","R4102"
"Wolverhampton City Council","http://opendatacommunities.org/id/metropolitan-district-council/wolverhampton","702786","Costa Ltd","A - PSI2342758","929.10","Provisions (Resale)","130199576","10/01/2018","Catering","Civic Centre Catering","R4102"
"Wolverhampton City Council","http://opendatacommunities.org/id/metropolitan-district-council/wolverhampton","702786","Costa Ltd","A - PSI2342758","-929.10","Provisions (Resale)","130199576","10/01/2018","Catering","Civic Centre Catering","R4102"
"Wolverhampton City Council","http://opendatacommunities.org/id/metropolitan-district-council/wolverhampton","702786","Costa Ltd","A - PSI2342758","103.04","Provisions (Resale)","130199576","10/01/2018","Catering","Civic Centre Catering","R4102"
"Wolverhampton City Council","http://opendatacommunities.org/id/metropolitan-district-council/wolverhampton","702786","Costa Ltd","A - PSI2342758","826.06","Provisions (Resale)","130199576","10/01/2018","Catering","Civic Centre Catering","R4102"
"Wolverhampton City Council","http://opendatacommunities.org/id/metropolitan-district-council/wolverhampton","702793","Cottage Blinds Cotracts Limited","010457","260.00","Equipment - R & M","130199578","05/01/2018","Learning Disability Provider","Ernest Bold Court","R4003"
"Wolverhampton City Council","http://opendatacommunities.org/id/metropolitan-district-council/wolverhampton","702796","Cougar Monitoring Limited","104689","7,920.00","Services - Security","130200917","10/01/2018","Facilities Management","Hickman Avenue Depot","R4405"
"Wolverhampton City Council","http://opendatacommunities.org/id/metropolitan-district-council/wolverhampton","702796","Cougar Monitoring Limited","104688","7,920.00","Services - Security","130200916","10/01/2018","Facilities Management","Culwell Street Depot","R4405"
"Wolverhampton City Council","http://opendatacommunities.org/id/metropolitan-district-council/wolverhampton","702796","Cougar Monitoring Limited","104690","5,160.00","Services - Security","130200918","12/01/2018","Estates and Valuations","Industrial Premises ; Fordhouse Road","R4405"
"Wolverhampton City Council","http://opendatacommunities.org/id/metropolitan-district-council/wolverhampton","702800","Counting Sol Ltd T/A PFM Footfall Intel","20180426","893.00","Services - Fees and Charges","130199579","05/01/2018","Markets","Bilston Market and Licensed Operations","R4401"
"Wolverhampton City Council","http://opendatacommunities.org/id/metropolitan-district-council/wolverhampton","702800","Counting Sol Ltd T/A PFM Footfall Intel","20180426","462.00","Services - Fees and Charges","130199579","05/01/2018","Markets","Bilston Market and Licensed Operations","R4401"
"Wolverhampton City Council","http://opendatacommunities.org/id/metropolitan-district-council/wolverhampton","702805","Countrywide Mobility Services Limited","H-28136","1,895.00","Equipment - Purchase","130199581","03/01/2018","Independent Living Service","Independent Living Service","R4000"
"Wolverhampton City Council","http://opendatacommunities.org/id/metropolitan-district-council/wolverhampton","702805","Countrywide Mobility Services Limited","H-28109","2,315.00","Equipment - Purchase","130199580","03/01/2018","Independent Living Service","Independent Living Service","R4000"
"Wolverhampton City Council","http://opendatacommunities.org/id/metropolitan-district-council/wolverhampton","702810","Courtney-Thorne Limited","SAJ - 2017 - 010323","1,787.80","Fixtures and Fittings - R&M","130199582","03/01/2018","Older People Provider Services","Bradley Lodge Resource Centre","R2502"
"Wolverhampton City Council","http://opendatacommunities.org/id/metropolitan-district-council/wolverhampton","702815","Coventry City Council","3696691","9,000.00","TPP - Payments to Local Authorities","130199583","03/01/2018","Looked After Children","Adoption and Residence Team & Allowances","R5100"
"Wolverhampton City Council","http://opendatacommunities.org/id/metropolitan-district-council/wolverhampton","702819","CPAG Limited","SI173088","50.83","Subscriptions","130200503","17/01/2018","Welfare Rights & Financial Assessment","Welfare Rights","R4701"
"Wolverhampton City Council","http://opendatacommunities.org/id/metropolitan-district-council/wolverhampton","702819","CPAG Limited","SI173134","21.25","Publications","130202581","19/01/2018","Welfare Rights & Financial Assessment","Welfare Rights","R4310"
"Wolverhampton City Council","http://opendatacommunities.org/id/metropolitan-district-council/wolverhampton","702819","CPAG Limited","SI173134","3.99","Comms - Postage","130202581","19/01/2018","Welfare Rights & Financial Assessment","Welfare Rights","R4503"
"Wolverhampton City Council","http://opendatacommunities.org/id/metropolitan-district-council/wolverhampton","702821","Cpl Petroleum","9173796","19,825.65","Inventories","190414543","24/01/2018","","General Fund Balance Sheet","B3000"
"Wolverhampton City Council","http://opendatacommunities.org/id/metropolitan-district-council/wolverhampton","702821","Cpl Petroleum","9081280","19,440.34","Inventories","190410170","10/01/2018","","General Fund Balance Sheet","B3000"
"Wolverhampton City Council","http://opendatacommunities.org/id/metropolitan-district-council/wolverhampton","702821","Cpl Petroleum","9051755","807.68","Inventories","190410169","10/01/2018","","General Fund Balance Sheet","B3000"
"Wolverhampton City Council","http://opendatacommunities.org/id/metropolitan-district-council/wolverhampton","702821","Cpl Petroleum","9173806","19,799.02","Inventories","190414544","24/01/2018","","General Fund Balance Sheet","B3000"
"Wolverhampton City Council","http://opendatacommunities.org/id/metropolitan-district-council/wolverhampton","702821","Cpl Petroleum","9102761","15,798.78","Inventories","190413587","19/01/2018","","General Fund Balance Sheet","B3000"
"Wolverhampton City Council","http://opendatacommunities.org/id/metropolitan-district-council/wolverhampton","702821","Cpl Petroleum","9002353","19,288.50","Inventories","190410167","10/01/2018","","General Fund Balance Sheet","B3000"
"Wolverhampton City Council","http://opendatacommunities.org/id/metropolitan-district-council/wolverhampton","702821","Cpl Petroleum","9085065","16,627.74","Inventories","190410171","10/01/2018","","General Fund Balance Sheet","B3000"
"Wolverhampton City Council","http://opendatacommunities.org/id/metropolitan-district-council/wolverhampton","702821","Cpl Petroleum","9002314","1,491.50","Inventories","190410166","10/01/2018","","General Fund Balance Sheet","B3000"
"Wolverhampton City Council","http://opendatacommunities.org/id/metropolitan-district-council/wolverhampton","702863","Credential Environmental Limited","016790","55.50","TPP - Waste Disposal","130199586","05/01/2018","Environmental Maintenance","Ground Maintenance East","R5003"
"Wolverhampton City Council","http://opendatacommunities.org/id/metropolitan-district-council/wolverhampton","702863","Credential Environmental Limited","016789","15.00","TPP - Waste Disposal","130199585","05/01/2018","Environmental Maintenance","Ground Maintenance East","R5003"
"Wolverhampton City Council","http://opendatacommunities.org/id/metropolitan-district-council/wolverhampton","702869","Cresta World Travel Limited(Northenden)","B343339","548.60","Education trips, Holidays, Outings & Activities","130201197","10/01/2018","Adult Education","Leonardo Da Vinci Project","R4970"
"Wolverhampton City Council","http://opendatacommunities.org/id/metropolitan-district-council/wolverhampton","702869","Cresta World Travel Limited(Northenden)","B343339","-548.60","Education trips, Holidays, Outings & Activities","130201197","10/01/2018","Adult Education","Leonardo Da Vinci Project","R4970"
"Wolverhampton City Council","http://opendatacommunities.org/id/metropolitan-district-council/wolverhampton","702869","Cresta World Travel Limited(Northenden)","B343339","548.60","Education trips, Holidays, Outings & Activities","130201197","10/01/2018","Adult Education","Leonardo Da Vinci Project","R4970"
"Wolverhampton City Council","http://opendatacommunities.org/id/metropolitan-district-council/wolverhampton","702903","CTT (Wolverhampton) Limited","15017","1,140.00","Client Transport","130201704","12/01/2018","School Planning & Resources","Special - Transport","R3042"
"Wolverhampton City Council","http://opendatacommunities.org/id/metropolitan-district-council/wolverhampton","702903","CTT (Wolverhampton) Limited","14915","275.00","Education trips, Holidays, Outings & Activities","130202565","19/01/2018","Schools","Castlecroft Primary School","R4970"
"Wolverhampton City Council","http://opendatacommunities.org/id/metropolitan-district-council/wolverhampton","702903","CTT (Wolverhampton) Limited","15014","1,140.00","Client Transport","130201701","12/01/2018","School Planning & Resources","Special - Transport","R3042"
"Wolverhampton City Council","http://opendatacommunities.org/id/metropolitan-district-council/wolverhampton","702903","CTT (Wolverhampton) Limited","15016","1,200.00","Client Transport","130201703","12/01/2018","School Planning & Resources","Special - Transport","R3042"
"Wolverhampton City Council","http://opendatacommunities.org/id/metropolitan-district-council/wolverhampton","702903","CTT (Wolverhampton) Limited","14877","235.00","Education trips, Holidays, Outings & Activities","130202564","19/01/2018","Schools","Castlecroft Primary School","R4970"
"Wolverhampton City Council","http://opendatacommunities.org/id/metropolitan-district-council/wolverhampton","702903","CTT (Wolverhampton) Limited","15015","1,278.00","Client Transport","130201702","12/01/2018","School Planning & Resources","Special - Transport","R3042"
"Wolverhampton City Council","http://opendatacommunities.org/id/metropolitan-district-council/wolverhampton","702910","Cummings Brothers","WC391","50.00","R&M - Departmental planned (external)","130199392","17/01/2018","Maintenance Programme","Centralised R&M","R2001"
"Wolverhampton City Council","http://opendatacommunities.org/id/metropolitan-district-council/wolverhampton","702910","Cummings Brothers","WC393","45.00","R&M - Departmental planned (external)","130202079","24/01/2018","Facilities Management","Hickman Avenue Depot","R2001"
"Wolverhampton City Council","http://opendatacommunities.org/id/metropolitan-district-council/wolverhampton","702910","Cummings Brothers","WC394","15.00","Services - Security","130202080","31/01/2018","Independent Living Service","Independent Living Service","R4405"
"Wolverhampton City Council","http://opendatacommunities.org/id/metropolitan-district-council/wolverhampton","702910","Cummings Brothers","WC392","35.50","Furniture","130200774","17/01/2018","Facilities Management","Civic Centre","R4004"
"Wolverhampton City Council","http://opendatacommunities.org/id/metropolitan-district-council/wolverhampton","702939","D & N Solicitors","02191","700.00","Services - Professional Fees","130202081","17/01/2018","Service Director City Economy","Service Director City Economy","R4400"
"Wolverhampton City Council","http://opendatacommunities.org/id/metropolitan-district-council/wolverhampton","702939","D & N Solicitors","02072","350.00","Services - Professional Fees","130203183","24/01/2018","Leisure Services","WV Active Business Support","R4400"
"Wolverhampton City Council","http://opendatacommunities.org/id/metropolitan-district-council/wolverhampton","702958","D N Prendergast","107","920.00","Hire of Vehicles","130201333","17/01/2018","Strategic Organisation Development","Education Library Service","R3200"
"Wolverhampton City Council","http://opendatacommunities.org/id/metropolitan-district-council/wolverhampton","702974","Daisy Communications Limited (Vialtus)","7592733","1,165.76","Computing - Internet","130201867","26/01/2018","ICTS","Strategic ICTS","R4537"
"Wolverhampton City Council","http://opendatacommunities.org/id/metropolitan-district-council/wolverhampton","702983","Danescourt Builders Limited","16/0094/DFGa","9,083.00","Grants paid out","190415101","24/01/2018","","Disabled Facilities Grants","C5000"
"Wolverhampton City Council","http://opendatacommunities.org/id/metropolitan-district-council/wolverhampton","703019","David Cherrington","CE/17/7","60.00","Training Expenses","130198876","03/01/2018","Human Resources","Centralised Training","R1650"
"Wolverhampton City Council","http://opendatacommunities.org/id/metropolitan-district-council/wolverhampton","703043","Places for People Leisure Management","1040823","720.00","TPP - Public Health Contracts","130201334","24/01/2018","Sports Development","Free Swim Project (PCT)","R5060"
"Wolverhampton City Council","http://opendatacommunities.org/id/metropolitan-district-council/wolverhampton","703043","Places for People Leisure Management","1040824","1,611.90","TPP - Public Health Contracts","130201335","24/01/2018","Sports Development","Free Swim Project (PCT)","R5060"
"Wolverhampton City Council","http://opendatacommunities.org/id/metropolitan-district-council/wolverhampton","703050","De Lage Landen Leasing Limited","90731700002440","2,825.32","Services - Professional Fees","130201338","26/01/2018","Human Resources","Salary Sacrifice Schemes","R4400"
"Wolverhampton City Council","http://opendatacommunities.org/id/metropolitan-district-council/wolverhampton","703050","De Lage Landen Leasing Limited","90731700002440","-2,825.32","Services - Professional Fees","130201338","26/01/2018","Human Resources","Salary Sacrifice Schemes","R4400"
"Wolverhampton City Council","http://opendatacommunities.org/id/metropolitan-district-council/wolverhampton","703050","De Lage Landen Leasing Limited","90731700002440","2,825.32","Services - Professional Fees","130201338","26/01/2018","Human Resources","Salary Sacrifice Schemes","R4400"
"Wolverhampton City Council","http://opendatacommunities.org/id/metropolitan-district-council/wolverhampton","703050","De Lage Landen Leasing Limited","90731700002168","1,344.23","Services - Professional Fees","130202701","24/01/2018","Human Resources","Salary Sacrifice Schemes","R4400"
"Wolverhampton City Council","http://opendatacommunities.org/id/metropolitan-district-council/wolverhampton","703050","De Lage Landen Leasing Limited","90731700002168","-1,344.23","Services - Professional Fees","130202701","24/01/2018","Human Resources","Salary Sacrifice Schemes","R4400"
"Wolverhampton City Council","http://opendatacommunities.org/id/metropolitan-district-council/wolverhampton","703050","De Lage Landen Leasing Limited","90731700002168","1,344.23","Services - Professional Fees","130202701","24/01/2018","Human Resources","Salary Sacrifice Schemes","R4400"
"Wolverhampton City Council","http://opendatacommunities.org/id/metropolitan-district-council/wolverhampton","703050","De Lage Landen Leasing Limited","907 317 00002358","1,344.23","Services - Professional Fees","130199595","12/01/2018","Human Resources","Salary Sacrifice Schemes","R4400"
"Wolverhampton City Council","http://opendatacommunities.org/id/metropolitan-district-council/wolverhampton","703050","De Lage Landen Leasing Limited","907 317 00002358","-1,344.23","Services - Professional Fees","130199595","12/01/2018","Human Resources","Salary Sacrifice Schemes","R4400"
"Wolverhampton City Council","http://opendatacommunities.org/id/metropolitan-district-council/wolverhampton","703050","De Lage Landen Leasing Limited","907 317 00002358","1,344.23","Services - Professional Fees","130199595","12/01/2018","Human Resources","Salary Sacrifice Schemes","R4400"
"Wolverhampton City Council","http://opendatacommunities.org/id/metropolitan-district-council/wolverhampton","703050","De Lage Landen Leasing Limited","90731700002287","856.76","Services - Professional Fees","130198715","03/01/2018","Human Resources","Salary Sacrifice Schemes","R4400"
"Wolverhampton City Council","http://opendatacommunities.org/id/metropolitan-district-council/wolverhampton","703050","De Lage Landen Leasing Limited","907 3 17 00002439","216.32","Services - Professional Fees","130201336","26/01/2018","Human Resources","Salary Sacrifice Schemes","R4400"
"Wolverhampton City Council","http://opendatacommunities.org/id/metropolitan-district-council/wolverhampton","703050","De Lage Landen Leasing Limited","907 3 17 00002439","-216.32","Services - Professional Fees","130201336","26/01/2018","Human Resources","Salary Sacrifice Schemes","R4400"
"Wolverhampton City Council","http://opendatacommunities.org/id/metropolitan-district-council/wolverhampton","703050","De Lage Landen Leasing Limited","907 3 17 00002439","216.32","Services - Professional Fees","130201336","26/01/2018","Human Resources","Salary Sacrifice Schemes","R4400"
"Wolverhampton City Council","http://opendatacommunities.org/id/metropolitan-district-council/wolverhampton","703050","De Lage Landen Leasing Limited","907 31700002357","588.17","Services - Professional Fees","130199594","12/01/2018","Human Resources","Salary Sacrifice Schemes","R4400"
"Wolverhampton City Council","http://opendatacommunities.org/id/metropolitan-district-council/wolverhampton","703050","De Lage Landen Leasing Limited","907 31800000003","1,346.87","Services - Professional Fees","130201337","26/01/2018","Human Resources","Salary Sacrifice Schemes","R4400"
"Wolverhampton City Council","http://opendatacommunities.org/id/metropolitan-district-council/wolverhampton","703074","Dennis Eagle Limited","318092","19.65","Services - Professional Fees","190415671","26/01/2018","Fleet Services","Fleet Management","R4400"
"Wolverhampton City Council","http://opendatacommunities.org/id/metropolitan-district-council/wolverhampton","703074","Dennis Eagle Limited","318092","117.92","Services - Professional Fees","190415671","26/01/2018","Fleet Services","Fleet Management","R4400"
"Wolverhampton City Council","http://opendatacommunities.org/id/metropolitan-district-council/wolverhampton","703074","Dennis Eagle Limited","DE11099315","34.88","Equipment - Purchase","190415709","26/01/2018","Fleet Services","Fleet Management","R4000"
"Wolverhampton City Council","http://opendatacommunities.org/id/metropolitan-district-council/wolverhampton","703074","Dennis Eagle Limited","DE11093316","3.81","Equipment - Purchase","190410182","10/01/2018","Fleet Services","Fleet Management","R4000"
"Wolverhampton City Council","http://opendatacommunities.org/id/metropolitan-district-council/wolverhampton","703074","Dennis Eagle Limited","DE11093316","51.74","Equipment - Purchase","190410182","10/01/2018","Fleet Services","Fleet Management","R4000"
"Wolverhampton City Council","http://opendatacommunities.org/id/metropolitan-district-council/wolverhampton","703074","Dennis Eagle Limited","DE11093316","7.21","Equipment - Purchase","190410182","10/01/2018","Fleet Services","Fleet Management","R4000"
"Wolverhampton City Council","http://opendatacommunities.org/id/metropolitan-district-council/wolverhampton","703074","Dennis Eagle Limited","DE11093316","61.92","Equipment - Purchase","190410182","10/01/2018","Fleet Services","Fleet Management","R4000"
"Wolverhampton City Council","http://opendatacommunities.org/id/metropolitan-district-council/wolverhampton","703074","Dennis Eagle Limited","DE11093316","535.70","Equipment - Purchase","190410182","10/01/2018","Fleet Services","Fleet Management","R4000"
"Wolverhampton City Council","http://opendatacommunities.org/id/metropolitan-district-council/wolverhampton","703074","Dennis Eagle Limited","DE11094745","27.70","Equipment - Purchase","190410186","10/01/2018","Fleet Services","Fleet Management","R4000"
"Wolverhampton City Council","http://opendatacommunities.org/id/metropolitan-district-council/wolverhampton","703074","Dennis Eagle Limited","314322","190.80","Services - Professional Fees","190410751","12/01/2018","Fleet Services","Fleet Management","R4400"
"Wolverhampton City Council","http://opendatacommunities.org/id/metropolitan-district-council/wolverhampton","703074","Dennis Eagle Limited","314322","95.40","Services - Professional Fees","190410751","12/01/2018","Fleet Services","Fleet Management","R4400"
"Wolverhampton City Council","http://opendatacommunities.org/id/metropolitan-district-council/wolverhampton","703074","Dennis Eagle Limited","DE11095117","98.40","Equipment - Purchase","190410763","12/01/2018","Fleet Services","Fleet Management","R4000"
"Wolverhampton City Council","http://opendatacommunities.org/id/metropolitan-district-council/wolverhampton","703074","Dennis Eagle Limited","DE11097782","80.66","Equipment - Purchase","190414557","24/01/2018","Fleet Services","Fleet Management","R4000"
"Wolverhampton City Council","http://opendatacommunities.org/id/metropolitan-district-council/wolverhampton","703074","Dennis Eagle Limited","DE11096212","46.61","Equipment - Purchase","190413590","19/01/2018","Fleet Services","Fleet Management","R4000"
"Wolverhampton City Council","http://opendatacommunities.org/id/metropolitan-district-council/wolverhampton","703074","Dennis Eagle Limited","DE11096212","364.33","Equipment - Purchase","190413590","19/01/2018","Fleet Services","Fleet Management","R4000"
"Wolverhampton City Council","http://opendatacommunities.org/id/metropolitan-district-council/wolverhampton","703074","Dennis Eagle Limited","DE11096212","13.11","Equipment - Purchase","190413590","19/01/2018","Fleet Services","Fleet Management","R4000"
"Wolverhampton City Council","http://opendatacommunities.org/id/metropolitan-district-council/wolverhampton","703074","Dennis Eagle Limited","DE11096212","108.60","Equipment - Purchase","190413590","19/01/2018","Fleet Services","Fleet Management","R4000"
"Wolverhampton City Council","http://opendatacommunities.org/id/metropolitan-district-council/wolverhampton","703074","Dennis Eagle Limited","DE11096649","69.38","Equipment - Purchase","190413591","19/01/2018","Fleet Services","Fleet Management","R4000"
"Wolverhampton City Council","http://opendatacommunities.org/id/metropolitan-district-council/wolverhampton","703074","Dennis Eagle Limited","DE11098092","62.16","Equipment - Purchase","190415707","26/01/2018","Fleet Services","Fleet Management","R4000"
"Wolverhampton City Council","http://opendatacommunities.org/id/metropolitan-district-council/wolverhampton","703074","Dennis Eagle Limited","DE30045037","-72.88","Equipment - Purchase","190415711","26/01/2018","Fleet Services","Fleet Management","R4000"
"Wolverhampton City Council","http://opendatacommunities.org/id/metropolitan-district-council/wolverhampton","703074","Dennis Eagle Limited","DE11093615","482.40","Equipment - Purchase","190410183","10/01/2018","Fleet Services","Fleet Management","R4000"
"Wolverhampton City Council","http://opendatacommunities.org/id/metropolitan-district-council/wolverhampton","703074","Dennis Eagle Limited","DE11093615","121.98","Equipment - Purchase","190410183","10/01/2018","Fleet Services","Fleet Management","R4000"
"Wolverhampton City Council","http://opendatacommunities.org/id/metropolitan-district-council/wolverhampton","703074","Dennis Eagle Limited","DE11094744","60.39","Equipment - Purchase","190410185","10/01/2018","Fleet Services","Fleet Management","R4000"
"Wolverhampton City Council","http://opendatacommunities.org/id/metropolitan-district-council/wolverhampton","703074","Dennis Eagle Limited","DE11094744","159.67","Equipment - Purchase","190410185","10/01/2018","Fleet Services","Fleet Management","R4000"
"Wolverhampton City Council","http://opendatacommunities.org/id/metropolitan-district-council/wolverhampton","703074","Dennis Eagle Limited","DE11094744","91.59","Equipment - Purchase","190410185","10/01/2018","Fleet Services","Fleet Management","R4000"
"Wolverhampton City Council","http://opendatacommunities.org/id/metropolitan-district-council/wolverhampton","703074","Dennis Eagle Limited","314321","190.80","Services - Professional Fees","190410750","12/01/2018","Fleet Services","Fleet Management","R4400"
"Wolverhampton City Council","http://opendatacommunities.org/id/metropolitan-district-council/wolverhampton","703074","Dennis Eagle Limited","314321","76.32","Services - Professional Fees","190410750","12/01/2018","Fleet Services","Fleet Management","R4400"
"Wolverhampton City Council","http://opendatacommunities.org/id/metropolitan-district-council/wolverhampton","703074","Dennis Eagle Limited","DE11095514","38.51","Equipment - Purchase","190410764","12/01/2018","Fleet Services","Fleet Management","R4000"
"Wolverhampton City Council","http://opendatacommunities.org/id/metropolitan-district-council/wolverhampton","703074","Dennis Eagle Limited","DE11095514","312.77","Equipment - Purchase","190410764","12/01/2018","Fleet Services","Fleet Management","R4000"
"Wolverhampton City Council","http://opendatacommunities.org/id/metropolitan-district-council/wolverhampton","703074","Dennis Eagle Limited","DE11095514","35.14","Equipment - Purchase","190410764","12/01/2018","Fleet Services","Fleet Management","R4000"
"Wolverhampton City Council","http://opendatacommunities.org/id/metropolitan-district-council/wolverhampton","703074","Dennis Eagle Limited","DE11098502","76.42","Equipment - Purchase","190413595","19/01/2018","Fleet Services","Fleet Management","R4000"
"Wolverhampton City Council","http://opendatacommunities.org/id/metropolitan-district-council/wolverhampton","703074","Dennis Eagle Limited","316942","76.32","Services - Professional Fees","190410752","12/01/2018","Fleet Services","Fleet Management","R4400"
"Wolverhampton City Council","http://opendatacommunities.org/id/metropolitan-district-council/wolverhampton","703074","Dennis Eagle Limited","316942","114.48","Services - Professional Fees","190410752","12/01/2018","Fleet Services","Fleet Management","R4400"
"Wolverhampton City Council","http://opendatacommunities.org/id/metropolitan-district-council/wolverhampton","703074","Dennis Eagle Limited","317348","248.04","Services - Professional Fees","190410755","12/01/2018","Fleet Services","Fleet Management","R4400"
"Wolverhampton City Council","http://opendatacommunities.org/id/metropolitan-district-council/wolverhampton","703074","Dennis Eagle Limited","317348","95.40","Services - Professional Fees","190410755","12/01/2018","Fleet Services","Fleet Management","R4400"
"Wolverhampton City Council","http://opendatacommunities.org/id/metropolitan-district-council/wolverhampton","703074","Dennis Eagle Limited","DE11095883","91.59","Equipment - Purchase","190410765","12/01/2018","Fleet Services","Fleet Management","R4000"
"Wolverhampton City Council","http://opendatacommunities.org/id/metropolitan-district-council/wolverhampton","703074","Dennis Eagle Limited","DE11097781","89.45","Protective Clothing","190413592","19/01/2018","Fleet Services","Fleet Management","R4200"
"Wolverhampton City Council","http://opendatacommunities.org/id/metropolitan-district-council/wolverhampton","703074","Dennis Eagle Limited","DE11098094","416.97","Equipment - Purchase","190413594","19/01/2018","Fleet Services","Fleet Management","R4000"
"Wolverhampton City Council","http://opendatacommunities.org/id/metropolitan-district-council/wolverhampton","703074","Dennis Eagle Limited","DE11094743","72.88","Equipment - Purchase","190410184","10/01/2018","Fleet Services","Fleet Management","R4000"
"Wolverhampton City Council","http://opendatacommunities.org/id/metropolitan-district-council/wolverhampton","703074","Dennis Eagle Limited","DE11093315","133.70","Equipment - Purchase","190410181","10/01/2018","Fleet Services","Fleet Management","R4000"
"Wolverhampton City Council","http://opendatacommunities.org/id/metropolitan-district-council/wolverhampton","703074","Dennis Eagle Limited","DE11096650","557.62","Equipment - Purchase","190415705","26/01/2018","Fleet Services","Fleet Management","R4000"
"Wolverhampton City Council","http://opendatacommunities.org/id/metropolitan-district-council/wolverhampton","703074","Dennis Eagle Limited","DE11099316","78.51","Equipment - Purchase","190415710","26/01/2018","Fleet Services","Fleet Management","R4000"
"Wolverhampton City Council","http://opendatacommunities.org/id/metropolitan-district-council/wolverhampton","703074","Dennis Eagle Limited","DE11097023","159.67","Equipment - Purchase","190415706","26/01/2018","Fleet Services","Fleet Management","R4000"
"Wolverhampton City Council","http://opendatacommunities.org/id/metropolitan-district-council/wolverhampton","703074","Dennis Eagle Limited","DE11097023","119.51","Equipment - Purchase","190415706","26/01/2018","Fleet Services","Fleet Management","R4000"
"Wolverhampton City Council","http://opendatacommunities.org/id/metropolitan-district-council/wolverhampton","703074","Dennis Eagle Limited","DE11098095","13.11","Equipment - Purchase","190415708","26/01/2018","Fleet Services","Fleet Management","R4000"
"Wolverhampton City Council","http://opendatacommunities.org/id/metropolitan-district-council/wolverhampton","703074","Dennis Eagle Limited","DE11098095","46.61","Equipment - Purchase","190415708","26/01/2018","Fleet Services","Fleet Management","R4000"
"Wolverhampton City Council","http://opendatacommunities.org/id/metropolitan-district-council/wolverhampton","703074","Dennis Eagle Limited","DE11098095","108.60","Equipment - Purchase","190415708","26/01/2018","Fleet Services","Fleet Management","R4000"
"Wolverhampton City Council","http://opendatacommunities.org/id/metropolitan-district-council/wolverhampton","703074","Dennis Eagle Limited","DE11098095","339.90","Equipment - Purchase","190415708","26/01/2018","Fleet Services","Fleet Management","R4000"
"Wolverhampton City Council","http://opendatacommunities.org/id/metropolitan-district-council/wolverhampton","703074","Dennis Eagle Limited","DE11098095","34.79","Equipment - Purchase","190415708","26/01/2018","Fleet Services","Fleet Management","R4000"
"Wolverhampton City Council","http://opendatacommunities.org/id/metropolitan-district-council/wolverhampton","703074","Dennis Eagle Limited","DE11094746","238.20","Equipment - Purchase","190410187","10/01/2018","Fleet Services","Fleet Management","R4000"
"Wolverhampton City Council","http://opendatacommunities.org/id/metropolitan-district-council/wolverhampton","703074","Dennis Eagle Limited","DE11098093","14.04","Equipment - Purchase","190413593","19/01/2018","Fleet Services","Fleet Management","R4000"
"Wolverhampton City Council","http://opendatacommunities.org/id/metropolitan-district-council/wolverhampton","703074","Dennis Eagle Limited","317013","57.24","Services - Professional Fees","190410753","12/01/2018","Fleet Services","Fleet Management","R4400"
"Wolverhampton City Council","http://opendatacommunities.org/id/metropolitan-district-council/wolverhampton","703074","Dennis Eagle Limited","317013","38.16","Services - Professional Fees","190410753","12/01/2018","Fleet Services","Fleet Management","R4400"
"Wolverhampton City Council","http://opendatacommunities.org/id/metropolitan-district-council/wolverhampton","703074","Dennis Eagle Limited","DE11095115","91.59","Equipment - Purchase","190410762","12/01/2018","Fleet Services","Fleet Management","R4000"
"Wolverhampton City Council","http://opendatacommunities.org/id/metropolitan-district-council/wolverhampton","703074","Dennis Eagle Limited","DE11095115","41.55","Equipment - Purchase","190410762","12/01/2018","Fleet Services","Fleet Management","R4000"
"Wolverhampton City Council","http://opendatacommunities.org/id/metropolitan-district-council/wolverhampton","703074","Dennis Eagle Limited","DE11095115","72.88","Equipment - Purchase","190410762","12/01/2018","Fleet Services","Fleet Management","R4000"
"Wolverhampton City Council","http://opendatacommunities.org/id/metropolitan-district-council/wolverhampton","703074","Dennis Eagle Limited","317014","95.40","Services - Professional Fees","190410754","12/01/2018","Fleet Services","Fleet Management","R4400"
"Wolverhampton City Council","http://opendatacommunities.org/id/metropolitan-district-council/wolverhampton","703074","Dennis Eagle Limited","317014","171.72","Services - Professional Fees","190410754","12/01/2018","Fleet Services","Fleet Management","R4400"
"Wolverhampton City Council","http://opendatacommunities.org/id/metropolitan-district-council/wolverhampton","703075","Dent & Partners Limited","40991","386.72","R&M - Departmental planned (internal)","130201339","12/01/2018","Maintenance Programme","Centralised R&M","R2000"
"Wolverhampton City Council","http://opendatacommunities.org/id/metropolitan-district-council/wolverhampton","703100","Dialogue","2601","2,000.00","Services - Consultants","130199596","12/01/2018","Strategic Organisation Development","Literature Festival","R4404"
"Wolverhampton City Council","http://opendatacommunities.org/id/metropolitan-district-council/wolverhampton","703126","Direct Healthcare Services Limited","0000038221","4,502.24","Equipment - Purchase","130198379","03/01/2018","Independent Living Service","Independent Living Service","R4000"
"Wolverhampton City Council","http://opendatacommunities.org/id/metropolitan-district-council/wolverhampton","703126","Direct Healthcare Services Limited","0000038623","1,350.00","Equipment - Purchase","130199601","17/01/2018","Independent Living Service","Independent Living Service","R4000"
"Wolverhampton City Council","http://opendatacommunities.org/id/metropolitan-district-council/wolverhampton","703126","Direct Healthcare Services Limited","0000038552","693.00","Equipment - Purchase","130199598","10/01/2018","Independent Living Service","Independent Living Service","R4000"
"Wolverhampton City Council","http://opendatacommunities.org/id/metropolitan-district-council/wolverhampton","703126","Direct Healthcare Services Limited","0000038552","2,099.20","Equipment - Purchase","130199598","10/01/2018","Independent Living Service","Independent Living Service","R4000"
"Wolverhampton City Council","http://opendatacommunities.org/id/metropolitan-district-council/wolverhampton","703126","Direct Healthcare Services Limited","0000038562","6,000.00","Equipment - R & M","130199599","10/01/2018","Independent Living Service","Independent Living Service","R4003"
"Wolverhampton City Council","http://opendatacommunities.org/id/metropolitan-district-council/wolverhampton","703126","Direct Healthcare Services Limited","0000038573","1,100.00","Equipment - Purchase","130199600","12/01/2018","Independent Living Service","Independent Living Service","R4000"
"Wolverhampton City Council","http://opendatacommunities.org/id/metropolitan-district-council/wolverhampton","703126","Direct Healthcare Services Limited","0000038573","35.00","Equipment - Purchase","130199600","12/01/2018","Independent Living Service","Independent Living Service","R4000"
"Wolverhampton City Council","http://opendatacommunities.org/id/metropolitan-district-council/wolverhampton","703126","Direct Healthcare Services Limited","0000038150","1,518.78","Equipment - R & M","130197761","03/01/2018","Independent Living Service","Independent Living Service","R4003"
"Wolverhampton City Council","http://opendatacommunities.org/id/metropolitan-district-council/wolverhampton","703126","Direct Healthcare Services Limited","0000036412","199.80","Equipment - R & M","130199597","03/01/2018","Independent Living Service","Independent Living Service","R4003"
"Wolverhampton City Council","http://opendatacommunities.org/id/metropolitan-district-council/wolverhampton","703126","Direct Healthcare Services Limited","0000036412","154.30","Equipment - R & M","130199597","03/01/2018","Independent Living Service","Independent Living Service","R4003"
"Wolverhampton City Council","http://opendatacommunities.org/id/metropolitan-district-council/wolverhampton","703126","Direct Healthcare Services Limited","0000036412","6.00","Equipment - R & M","130199597","03/01/2018","Independent Living Service","Independent Living Service","R4003"
"Wolverhampton City Council","http://opendatacommunities.org/id/metropolitan-district-council/wolverhampton","703126","Direct Healthcare Services Limited","0000036412","419.90","Equipment - R & M","130199597","03/01/2018","Independent Living Service","Independent Living Service","R4003"
"Wolverhampton City Council","http://opendatacommunities.org/id/metropolitan-district-council/wolverhampton","703126","Direct Healthcare Services Limited","0000036412","119.88","Equipment - R & M","130199597","03/01/2018","Independent Living Service","Independent Living Service","R4003"
"Wolverhampton City Council","http://opendatacommunities.org/id/metropolitan-district-council/wolverhampton","703126","Direct Healthcare Services Limited","0000038762","726.10","Equipment - Purchase","130200920","24/01/2018","Independent Living Service","Independent Living Service","R4000"
"Wolverhampton City Council","http://opendatacommunities.org/id/metropolitan-district-council/wolverhampton","703126","Direct Healthcare Services Limited","0000038762","1,406.80","Equipment - Purchase","130200920","24/01/2018","Independent Living Service","Independent Living Service","R4000"
"Wolverhampton City Council","http://opendatacommunities.org/id/metropolitan-district-council/wolverhampton","703126","Direct Healthcare Services Limited","0000038762","1,564.50","Equipment - Purchase","130200920","24/01/2018","Independent Living Service","Independent Living Service","R4000"
"Wolverhampton City Council","http://opendatacommunities.org/id/metropolitan-district-council/wolverhampton","703126","Direct Healthcare Services Limited","0000038762","5,244.75","Equipment - Purchase","130200920","24/01/2018","Independent Living Service","Independent Living Service","R4000"
"Wolverhampton City Council","http://opendatacommunities.org/id/metropolitan-district-council/wolverhampton","703134","Disable Aids (Cannock) Limited","89640","55.00","Equipment - R & M","130202703","24/01/2018","Independent Living Service","Independent Living Service","R4003"
"Wolverhampton City Council","http://opendatacommunities.org/id/metropolitan-district-council/wolverhampton","703134","Disable Aids (Cannock) Limited","89644","105.00","Equipment - R & M","130202582","24/01/2018","Independent Living Service","Independent Living Service","R4003"
"Wolverhampton City Council","http://opendatacommunities.org/id/metropolitan-district-council/wolverhampton","703134","Disable Aids (Cannock) Limited","89278","128.88","Equipment - R & M","130199607","03/01/2018","Independent Living Service","Independent Living Service","R4003"
"Wolverhampton City Council","http://opendatacommunities.org/id/metropolitan-district-council/wolverhampton","703134","Disable Aids (Cannock) Limited","89090","89.00","Equipment - R & M","130199394","03/01/2018","Independent Living Service","Independent Living Service","R4003"
"Wolverhampton City Council","http://opendatacommunities.org/id/metropolitan-district-council/wolverhampton","703134","Disable Aids (Cannock) Limited","89457","45.00","Equipment - R & M","130202981","26/01/2018","Independent Living Service","Independent Living Service","R4003"
"Wolverhampton City Council","http://opendatacommunities.org/id/metropolitan-district-council/wolverhampton","703134","Disable Aids (Cannock) Limited","86922","364.50","Equipment - R & M","130202054","26/01/2018","Independent Living Service","Independent Living Service","R4003"
"Wolverhampton City Council","http://opendatacommunities.org/id/metropolitan-district-council/wolverhampton","703134","Disable Aids (Cannock) Limited","89677","140.00","Equipment - Purchase","130203515","26/01/2018","Independent Living Service","Independent Living Service","R4000"
"Wolverhampton City Council","http://opendatacommunities.org/id/metropolitan-district-council/wolverhampton","703134","Disable Aids (Cannock) Limited","88851","49.50","Equipment - R & M","130197247","10/01/2018","Independent Living Service","Independent Living Service","R4003"
"Wolverhampton City Council","http://opendatacommunities.org/id/metropolitan-district-council/wolverhampton","703134","Disable Aids (Cannock) Limited","89637","2,594.63","Equipment - Purchase","130203829","31/01/2018","Learning Disability Provider","Learning Disabilities Management","R4000"
"Wolverhampton City Council","http://opendatacommunities.org/id/metropolitan-district-council/wolverhampton","703134","Disable Aids (Cannock) Limited","89646","55.00","Equipment - R & M","130202584","24/01/2018","Independent Living Service","Independent Living Service","R4003"
"Wolverhampton City Council","http://opendatacommunities.org/id/metropolitan-district-council/wolverhampton","703134","Disable Aids (Cannock) Limited","89606","425.00","Equipment - Purchase","130203142","24/01/2018","Learning Disability Provider","City Links","R4000"
"Wolverhampton City Council","http://opendatacommunities.org/id/metropolitan-district-council/wolverhampton","703134","Disable Aids (Cannock) Limited","89606","35.00","Equipment - Purchase","130203142","24/01/2018","Learning Disability Provider","City Links","R4000"
"Wolverhampton City Council","http://opendatacommunities.org/id/metropolitan-district-council/wolverhampton","703134","Disable Aids (Cannock) Limited","88967","692.40","Equipment - Purchase","130201705","12/01/2018","Independent Living Service","Independent Living Service","R4000"
"Wolverhampton City Council","http://opendatacommunities.org/id/metropolitan-district-council/wolverhampton","703134","Disable Aids (Cannock) Limited","89115","74.50","Equipment - R & M","130199403","03/01/2018","Independent Living Service","Independent Living Service","R4003"
"Wolverhampton City Council","http://opendatacommunities.org/id/metropolitan-district-council/wolverhampton","703134","Disable Aids (Cannock) Limited","89127","1,900.00","Equipment - Purchase","130199604","03/01/2018","Independent Living Service","Independent Living Service","R4000"
"Wolverhampton City Council","http://opendatacommunities.org/id/metropolitan-district-council/wolverhampton","703134","Disable Aids (Cannock) Limited","89410","139.00","Equipment - R & M","130202979","26/01/2018","Independent Living Service","Independent Living Service","R4003"
"Wolverhampton City Council","http://opendatacommunities.org/id/metropolitan-district-council/wolverhampton","703134","Disable Aids (Cannock) Limited","89409","79.50","Equipment - R & M","130202978","26/01/2018","Independent Living Service","Independent Living Service","R4003"
"Wolverhampton City Council","http://opendatacommunities.org/id/metropolitan-district-council/wolverhampton","703134","Disable Aids (Cannock) Limited","89456","55.00","Equipment - R & M","130202980","26/01/2018","Independent Living Service","Independent Living Service","R4003"
"Wolverhampton City Council","http://opendatacommunities.org/id/metropolitan-district-council/wolverhampton","703134","Disable Aids (Cannock) Limited","89128","1,281.13","Equipment - R & M","130200803","10/01/2018","Independent Living Service","Independent Living Service","R4003"
"Wolverhampton City Council","http://opendatacommunities.org/id/metropolitan-district-council/wolverhampton","703134","Disable Aids (Cannock) Limited","89643","55.00","Equipment - R & M","130202706","24/01/2018","Independent Living Service","Independent Living Service","R4003"
"Wolverhampton City Council","http://opendatacommunities.org/id/metropolitan-district-council/wolverhampton","703134","Disable Aids (Cannock) Limited","89309","162.50","Equipment - R & M","130199608","24/01/2018","Independent Living Service","Independent Living Service","R4003"
"Wolverhampton City Council","http://opendatacommunities.org/id/metropolitan-district-council/wolverhampton","703134","Disable Aids (Cannock) Limited","89642","87.50","Equipment - R & M","130202705","24/01/2018","Independent Living Service","Independent Living Service","R4003"
"Wolverhampton City Council","http://opendatacommunities.org/id/metropolitan-district-council/wolverhampton","703134","Disable Aids (Cannock) Limited","89075","14.43","Equipment - R & M","130199603","03/01/2018","Independent Living Service","Independent Living Service","R4003"
"Wolverhampton City Council","http://opendatacommunities.org/id/metropolitan-district-council/wolverhampton","703134","Disable Aids (Cannock) Limited","88587","360.00","Equipment - Purchase","130199602","03/01/2018","Independent Living Service","Independent Living Service","R4000"
"Wolverhampton City Council","http://opendatacommunities.org/id/metropolitan-district-council/wolverhampton","703134","Disable Aids (Cannock) Limited","89469","1,850.00","Equipment - Purchase","130202438","26/01/2018","Independent Living Service","Independent Living Service","R4000"
"Wolverhampton City Council","http://opendatacommunities.org/id/metropolitan-district-council/wolverhampton","703134","Disable Aids (Cannock) Limited","89395","770.00","Equipment - Purchase","130202436","26/01/2018","Independent Living Service","Independent Living Service","R4000"
"Wolverhampton City Council","http://opendatacommunities.org/id/metropolitan-district-council/wolverhampton","703134","Disable Aids (Cannock) Limited","86925","49.50","Equipment - R & M","130202376","26/01/2018","Independent Living Service","Independent Living Service","R4003"
"Wolverhampton City Council","http://opendatacommunities.org/id/metropolitan-district-council/wolverhampton","703134","Disable Aids (Cannock) Limited","86924","128.13","Equipment - R & M","130202059","26/01/2018","Independent Living Service","Independent Living Service","R4003"
"Wolverhampton City Council","http://opendatacommunities.org/id/metropolitan-district-council/wolverhampton","703134","Disable Aids (Cannock) Limited","89458","129.31","Equipment - R & M","130202982","26/01/2018","Independent Living Service","Independent Living Service","R4003"
"Wolverhampton City Council","http://opendatacommunities.org/id/metropolitan-district-council/wolverhampton","703134","Disable Aids (Cannock) Limited","86923","183.63","Equipment - R & M","130202053","26/01/2018","Independent Living Service","Independent Living Service","R4003"
"Wolverhampton City Council","http://opendatacommunities.org/id/metropolitan-district-council/wolverhampton","703134","Disable Aids (Cannock) Limited","86921","49.50","Equipment - R & M","130202061","26/01/2018","Independent Living Service","Independent Living Service","R4003"
"Wolverhampton City Council","http://opendatacommunities.org/id/metropolitan-district-council/wolverhampton","703134","Disable Aids (Cannock) Limited","89398","2,492.88","Equipment - Purchase","130202437","26/01/2018","Independent Living Service","Independent Living Service","R4000"
"Wolverhampton City Council","http://opendatacommunities.org/id/metropolitan-district-council/wolverhampton","703134","Disable Aids (Cannock) Limited","89089","185.00","Equipment - R & M","130203087","24/01/2018","Independent Living Service","Independent Living Service","R4003"
"Wolverhampton City Council","http://opendatacommunities.org/id/metropolitan-district-council/wolverhampton","703134","Disable Aids (Cannock) Limited","89641","55.00","Equipment - R & M","130202704","24/01/2018","Independent Living Service","Independent Living Service","R4003"
"Wolverhampton City Council","http://opendatacommunities.org/id/metropolitan-district-council/wolverhampton","703134","Disable Aids (Cannock) Limited","89645","94.50","Equipment - R & M","130202583","24/01/2018","Independent Living Service","Independent Living Service","R4003"
"Wolverhampton City Council","http://opendatacommunities.org/id/metropolitan-district-council/wolverhampton","703134","Disable Aids (Cannock) Limited","89129","143.38","Equipment - R & M","130199605","03/01/2018","Independent Living Service","Independent Living Service","R4003"
"Wolverhampton City Council","http://opendatacommunities.org/id/metropolitan-district-council/wolverhampton","703134","Disable Aids (Cannock) Limited","89091","79.50","Equipment - R & M","130199395","03/01/2018","Independent Living Service","Independent Living Service","R4003"
"Wolverhampton City Council","http://opendatacommunities.org/id/metropolitan-district-council/wolverhampton","703136","Disclosure & Barring Service (Dbs)","A75020","4,452.00","CRB Police Checks","130203319","26/01/2018","The Hub","Criminal Convictions Checking","R1601"
"Wolverhampton City Council","http://opendatacommunities.org/id/metropolitan-district-council/wolverhampton","703155","Critiqom Limited","030999","2,255.64","Comms - Postage","130201342","24/01/2018","Revenues & Benefits","Revenues","R4503"
"Wolverhampton City Council","http://opendatacommunities.org/id/metropolitan-district-council/wolverhampton","703155","Critiqom Limited","031000","3,105.12","Comms - Postage","130201343","24/01/2018","Revenues & Benefits","Revenues","R4503"
"Wolverhampton City Council","http://opendatacommunities.org/id/metropolitan-district-council/wolverhampton","703155","Critiqom Limited","030997","65.00","Comms - Postage","130201340","12/01/2018","Revenues & Benefits","Revenues","R4503"
"Wolverhampton City Council","http://opendatacommunities.org/id/metropolitan-district-council/wolverhampton","703155","Critiqom Limited","030998","20.00","Comms - Postage","130201341","12/01/2018","Revenues & Benefits","Revenues","R4503"
"Wolverhampton City Council","http://opendatacommunities.org/id/metropolitan-district-council/wolverhampton","703155","Critiqom Limited","030279","1,107.84","Comms - Postage","130198542","10/01/2018","Revenues & Benefits","Revenues","R4503"
"Wolverhampton City Council","http://opendatacommunities.org/id/metropolitan-district-council/wolverhampton","703155","Critiqom Limited","030282","1,001.12","Comms - Postage","130198545","17/01/2018","Democratic Services","Electoral Registration","R4503"
"Wolverhampton City Council","http://opendatacommunities.org/id/metropolitan-district-council/wolverhampton","703184","Dr Ds Bagary & Mrs Jk Bagary","FOS4018","76.24","Services - Professional Fees","190408592","05/01/2018","Looked After Children","Fostering Team & Allowances","R4400"
"Wolverhampton City Council","http://opendatacommunities.org/id/metropolitan-district-council/wolverhampton","703184","Dr Ds Bagary & Mrs Jk Bagary","FOS4017","76.24","Services - Professional Fees","190408591","05/01/2018","Looked After Children","Fostering Team & Allowances","R4400"
"Wolverhampton City Council","http://opendatacommunities.org/id/metropolitan-district-council/wolverhampton","703189","Dr G Dhillon","M2017Q315SMSCMRQ","963.00","TPP - Public Health Contracts","190416871","31/01/2018","Contracts","Alcohol and Drug","R5060"
"Wolverhampton City Council","http://opendatacommunities.org/id/metropolitan-district-council/wolverhampton","703189","Dr G Dhillon","M2017Q315SHIUDFQ","400.00","TPP - Public Health Contracts","190416875","31/01/2018","Contracts","Sexual Health","R5060"
"Wolverhampton City Council","http://opendatacommunities.org/id/metropolitan-district-council/wolverhampton","703189","Dr G Dhillon","M2017Q315SHCHLAQ","72.00","TPP - Public Health Contracts","190416879","31/01/2018","Contracts","Sexual Health","R5060"
"Wolverhampton City Council","http://opendatacommunities.org/id/metropolitan-district-council/wolverhampton","703189","Dr G Dhillon","M2017Q315HL304NQ","140.00","TPP - Public Health Contracts","190416883","31/01/2018","Contracts","Healthy Lifestyles","R5060"
"Wolverhampton City Council","http://opendatacommunities.org/id/metropolitan-district-council/wolverhampton","703189","Dr G Dhillon","M2017Q315SHCIFIQ","250.00","TPP - Public Health Contracts","190416872","31/01/2018","Contracts","Sexual Health","R5060"
"Wolverhampton City Council","http://opendatacommunities.org/id/metropolitan-district-council/wolverhampton","703189","Dr G Dhillon","M2017Q315SHIUFRQ","25.00","TPP - Public Health Contracts","190416876","31/01/2018","Contracts","Sexual Health","R5060"
"Wolverhampton City Council","http://opendatacommunities.org/id/metropolitan-district-council/wolverhampton","703189","Dr G Dhillon","M2017Q315HL1IHCQ","2.00","TPP - Public Health Contracts","190416880","31/01/2018","Contracts","Healthy Lifestyles","R5060"
"Wolverhampton City Council","http://opendatacommunities.org/id/metropolitan-district-council/wolverhampton","703189","Dr G Dhillon","M2017Q315HL304TQ","10.00","TPP - Public Health Contracts","190416884","31/01/2018","Contracts","Healthy Lifestyles","R5060"
"Wolverhampton City Council","http://opendatacommunities.org/id/metropolitan-district-council/wolverhampton","703189","Dr G Dhillon","M2017Q315SHCIFBQ","80.00","TPP - Public Health Contracts","190416874","31/01/2018","Contracts","Sexual Health","R5060"
"Wolverhampton City Council","http://opendatacommunities.org/id/metropolitan-district-council/wolverhampton","703189","Dr G Dhillon","M2017Q3.15SHIURFQ","200.00","TPP - Public Health Contracts","190416878","31/01/2018","Contracts","Sexual Health","R5060"
"Wolverhampton City Council","http://opendatacommunities.org/id/metropolitan-district-council/wolverhampton","703189","Dr G Dhillon","M2017Q315HL2COMQ","300.00","TPP - Public Health Contracts","190416882","31/01/2018","Contracts","Healthy Lifestyles","R5060"
"Wolverhampton City Council","http://opendatacommunities.org/id/metropolitan-district-council/wolverhampton","703189","Dr G Dhillon","M2017Q315SHCIFRQ","225.00","TPP - Public Health Contracts","190416873","31/01/2018","Contracts","Sexual Health","R5060"
"Wolverhampton City Council","http://opendatacommunities.org/id/metropolitan-district-council/wolverhampton","703189","Dr G Dhillon","M2017Q3.15SHIUDRQ","25.00","TPP - Public Health Contracts","190416877","31/01/2018","Contracts","Sexual Health","R5060"
"Wolverhampton City Council","http://opendatacommunities.org/id/metropolitan-district-council/wolverhampton","703189","Dr G Dhillon","M2017Q315HL1IPRQ","12.00","TPP - Public Health Contracts","190416881","31/01/2018","Contracts","Healthy Lifestyles","R5060"
"Wolverhampton City Council","http://opendatacommunities.org/id/metropolitan-district-council/wolverhampton","703189","Dr G Dhillon","M2017Q315HL312TQ","45.00","TPP - Public Health Contracts","190416885","31/01/2018","Contracts","Healthy Lifestyles","R5060"
"Wolverhampton City Council","http://opendatacommunities.org/id/metropolitan-district-council/wolverhampton","703192","Dr Libberton and Ram","M2017Q315SHCIFBQ","240.00","TPP - Public Health Contracts","190416858","31/01/2018","Contracts","Sexual Health","R5060"
"Wolverhampton City Council","http://opendatacommunities.org/id/metropolitan-district-council/wolverhampton","703192","Dr Libberton and Ram","M2017Q315SHCIFIQ","250.00","TPP - Public Health Contracts","190416856","31/01/2018","Contracts","Sexual Health","R5060"
"Wolverhampton City Council","http://opendatacommunities.org/id/metropolitan-district-council/wolverhampton","703192","Dr Libberton and Ram","M2017Q315HL2COMQ","125.00","TPP - Public Health Contracts","190416866","31/01/2018","Contracts","Healthy Lifestyles","R5060"
"Wolverhampton City Council","http://opendatacommunities.org/id/metropolitan-district-council/wolverhampton","703192","Dr Libberton and Ram","M2017Q315SHIUDFQ","200.00","TPP - Public Health Contracts","190416859","31/01/2018","Contracts","Sexual Health","R5060"
"Wolverhampton City Council","http://opendatacommunities.org/id/metropolitan-district-council/wolverhampton","703192","Dr Libberton and Ram","M2017Q3.15SHIUDRQ","125.00","TPP - Public Health Contracts","190416861","31/01/2018","Contracts","Sexual Health","R5060"
"Wolverhampton City Council","http://opendatacommunities.org/id/metropolitan-district-council/wolverhampton","703192","Dr Libberton and Ram","M2017Q315SMSCMRQ","642.00","TPP - Public Health Contracts","190416855","31/01/2018","Contracts","Alcohol and Drug","R5060"
"Wolverhampton City Council","http://opendatacommunities.org/id/metropolitan-district-council/wolverhampton","703192","Dr Libberton and Ram","M2017Q315SHIUFRQ","25.00","TPP - Public Health Contracts","190416860","31/01/2018","Contracts","Sexual Health","R5060"
"Wolverhampton City Council","http://opendatacommunities.org/id/metropolitan-district-council/wolverhampton","703192","Dr Libberton and Ram","M2017Q315HL1IHCQ","10.00","TPP - Public Health Contracts","190416864","31/01/2018","Contracts","Healthy Lifestyles","R5060"
"Wolverhampton City Council","http://opendatacommunities.org/id/metropolitan-district-council/wolverhampton","703192","Dr Libberton and Ram","M2017Q315SHCIFRQ","180.00","TPP - Public Health Contracts","190416857","31/01/2018","Contracts","Sexual Health","R5060"
"Wolverhampton City Council","http://opendatacommunities.org/id/metropolitan-district-council/wolverhampton","703192","Dr Libberton and Ram","M2017Q3.15SHIURFQ","300.00","TPP - Public Health Contracts","190416862","31/01/2018","Contracts","Sexual Health","R5060"
"Wolverhampton City Council","http://opendatacommunities.org/id/metropolitan-district-council/wolverhampton","703192","Dr Libberton and Ram","M2017Q315HL1IPRQ","5.00","TPP - Public Health Contracts","190416865","31/01/2018","Contracts","Healthy Lifestyles","R5060"
"Wolverhampton City Council","http://opendatacommunities.org/id/metropolitan-district-council/wolverhampton","703192","Dr Libberton and Ram","M2017Q315SHCHLAQ","64.00","TPP - Public Health Contracts","190416863","31/01/2018","Contracts","Sexual Health","R5060"
"Wolverhampton City Council","http://opendatacommunities.org/id/metropolitan-district-council/wolverhampton","703194","Dr J M Fowler","M2017Q315SHCIFIQ","200.00","TPP - Public Health Contracts","190416817","31/01/2018","Contracts","Sexual Health","R5060"
"Wolverhampton City Council","http://opendatacommunities.org/id/metropolitan-district-council/wolverhampton","703194","Dr J M Fowler","M2017Q315SHCIFRQ","180.00","TPP - Public Health Contracts","190416818","31/01/2018","Contracts","Sexual Health","R5060"
"Wolverhampton City Council","http://opendatacommunities.org/id/metropolitan-district-council/wolverhampton","703194","Dr J M Fowler","M2017Q315SHCHLAQ","72.00","TPP - Public Health Contracts","190416819","31/01/2018","Contracts","Sexual Health","R5060"
"Wolverhampton City Council","http://opendatacommunities.org/id/metropolitan-district-council/wolverhampton","703196","Dr Jackson & Partners","FOS4021","76.24","Services - Professional Fees","190408595","05/01/2018","Looked After Children","Fostering Team & Allowances","R4400"
"Wolverhampton City Council","http://opendatacommunities.org/id/metropolitan-district-council/wolverhampton","703196","Dr Jackson & Partners","FOS4022","76.24","Services - Professional Fees","190408596","05/01/2018","Looked After Children","Fostering Team & Allowances","R4400"
"Wolverhampton City Council","http://opendatacommunities.org/id/metropolitan-district-council/wolverhampton","703205","Dr M.S.Kainth","M2017Q315HL304NQ","210.00","TPP - Public Health Contracts","190416781","31/01/2018","Contracts","Healthy Lifestyles","R5060"
"Wolverhampton City Council","http://opendatacommunities.org/id/metropolitan-district-council/wolverhampton","703205","Dr M.S.Kainth","M2017Q315SHCHLAQ","32.00","TPP - Public Health Contracts","190416780","31/01/2018","Contracts","Sexual Health","R5060"
"Wolverhampton City Council","http://opendatacommunities.org/id/metropolitan-district-council/wolverhampton","703205","Dr M.S.Kainth","M2017Q315HL304TQ","15.00","TPP - Public Health Contracts","190416782","31/01/2018","Contracts","Healthy Lifestyles","R5060"
"Wolverhampton City Council","http://opendatacommunities.org/id/metropolitan-district-council/wolverhampton","703205","Dr M.S.Kainth","M2017Q315SMSCMRQ","214.00","TPP - Public Health Contracts","190416779","31/01/2018","Contracts","Alcohol and Drug","R5060"
"Wolverhampton City Council","http://opendatacommunities.org/id/metropolitan-district-council/wolverhampton","703217","Dr Parkes And Partners","M2017Q315SHCIFRQ","45.00","TPP - Public Health Contracts","190416770","31/01/2018","Contracts","Sexual Health","R5060"
"Wolverhampton City Council","http://opendatacommunities.org/id/metropolitan-district-council/wolverhampton","703217","Dr Parkes And Partners","M2017Q315HL1IPRQ","29.00","TPP - Public Health Contracts","190416774","31/01/2018","Contracts","Healthy Lifestyles","R5060"
"Wolverhampton City Council","http://opendatacommunities.org/id/metropolitan-district-council/wolverhampton","703217","Dr Parkes And Partners","M2017Q315HL304TQ","25.00","TPP - Public Health Contracts","190416777","31/01/2018","Contracts","Healthy Lifestyles","R5060"
"Wolverhampton City Council","http://opendatacommunities.org/id/metropolitan-district-council/wolverhampton","703217","Dr Parkes And Partners","M2017Q315HL1IHCQ","8.10","TPP - Public Health Contracts","190416773","31/01/2018","Contracts","Healthy Lifestyles","R5060"
"Wolverhampton City Council","http://opendatacommunities.org/id/metropolitan-district-council/wolverhampton","703217","Dr Parkes And Partners","5751/7815/JP/BJP","40.00","Medical Fees","190410657","12/01/2018","Learning Disability Provider","Duke Street Bungalows","R1400"
"Wolverhampton City Council","http://opendatacommunities.org/id/metropolitan-district-council/wolverhampton","703217","Dr Parkes And Partners","M2017Q315HL2COMQ","725.00","TPP - Public Health Contracts","190416775","31/01/2018","Contracts","Healthy Lifestyles","R5060"
"Wolverhampton City Council","http://opendatacommunities.org/id/metropolitan-district-council/wolverhampton","703217","Dr Parkes And Partners","M2017Q3.15SHIUDRQ","25.00","TPP - Public Health Contracts","190416772","31/01/2018","Contracts","Sexual Health","R5060"
"Wolverhampton City Council","http://opendatacommunities.org/id/metropolitan-district-council/wolverhampton","703217","Dr Parkes And Partners","M2017Q315HL312TQ","135.00","TPP - Public Health Contracts","190416778","31/01/2018","Contracts","Healthy Lifestyles","R5060"
"Wolverhampton City Council","http://opendatacommunities.org/id/metropolitan-district-council/wolverhampton","703217","Dr Parkes And Partners","M2017Q315HL304NQ","70.00","TPP - Public Health Contracts","190416776","31/01/2018","Contracts","Healthy Lifestyles","R5060"
"Wolverhampton City Council","http://opendatacommunities.org/id/metropolitan-district-council/wolverhampton","703217","Dr Parkes And Partners","M2017Q315SHIUDFQ","300.00","TPP - Public Health Contracts","190416771","31/01/2018","Contracts","Sexual Health","R5060"
"Wolverhampton City Council","http://opendatacommunities.org/id/metropolitan-district-council/wolverhampton","703218","Dr Peacock & Partners","M2017Q315HL2COMQ","150.00","TPP - Public Health Contracts","190416814","31/01/2018","Contracts","Healthy Lifestyles","R5060"
"Wolverhampton City Council","http://opendatacommunities.org/id/metropolitan-district-council/wolverhampton","703218","Dr Peacock & Partners","M2017Q315SHCHLAQ","48.00","TPP - Public Health Contracts","190416811","31/01/2018","Contracts","Sexual Health","R5060"
"Wolverhampton City Council","http://opendatacommunities.org/id/metropolitan-district-council/wolverhampton","703218","Dr Peacock & Partners","M2017Q315HL1IHCQ","12.40","TPP - Public Health Contracts","190416812","31/01/2018","Contracts","Healthy Lifestyles","R5060"
"Wolverhampton City Council","http://opendatacommunities.org/id/metropolitan-district-council/wolverhampton","703218","Dr Peacock & Partners","M2017Q315HL304NQ","140.00","TPP - Public Health Contracts","190416815","31/01/2018","Contracts","Healthy Lifestyles","R5060"
"Wolverhampton City Council","http://opendatacommunities.org/id/metropolitan-district-council/wolverhampton","703218","Dr Peacock & Partners","M2017Q315HL1IPRQ","6.00","TPP - Public Health Contracts","190416813","31/01/2018","Contracts","Healthy Lifestyles","R5060"
"Wolverhampton City Council","http://opendatacommunities.org/id/metropolitan-district-council/wolverhampton","703218","Dr Peacock & Partners","M2017Q315HL312TQ","135.00","TPP - Public Health Contracts","190416816","31/01/2018","Contracts","Healthy Lifestyles","R5060"
"Wolverhampton City Council","http://opendatacommunities.org/id/metropolitan-district-council/wolverhampton","703221","Dr R Kharwadkar","M2017Q315SHIUDFQ","200.00","TPP - Public Health Contracts","190416890","31/01/2018","Contracts","Sexual Health","R5060"
"Wolverhampton City Council","http://opendatacommunities.org/id/metropolitan-district-council/wolverhampton","703221","Dr R Kharwadkar","M2017Q3.15SHIUDRQ","50.00","TPP - Public Health Contracts","190416892","31/01/2018","Contracts","Sexual Health","R5060"
"Wolverhampton City Council","http://opendatacommunities.org/id/metropolitan-district-council/wolverhampton","703221","Dr R Kharwadkar","M2017Q315HL312TQ","225.00","TPP - Public Health Contracts","190416898","31/01/2018","Contracts","Healthy Lifestyles","R5060"
"Wolverhampton City Council","http://opendatacommunities.org/id/metropolitan-district-council/wolverhampton","703221","Dr R Kharwadkar","M2017Q315HL304TQ","55.00","TPP - Public Health Contracts","190416897","31/01/2018","Contracts","Healthy Lifestyles","R5060"
"Wolverhampton City Council","http://opendatacommunities.org/id/metropolitan-district-council/wolverhampton","703221","Dr R Kharwadkar","M2017Q315HL2COMQ","75.00","TPP - Public Health Contracts","190416895","31/01/2018","Contracts","Healthy Lifestyles","R5060"
"Wolverhampton City Council","http://opendatacommunities.org/id/metropolitan-district-council/wolverhampton","703221","Dr R Kharwadkar","M2017Q315HL1IHCQ","0.10","TPP - Public Health Contracts","190416894","31/01/2018","Contracts","Healthy Lifestyles","R5060"
"Wolverhampton City Council","http://opendatacommunities.org/id/metropolitan-district-council/wolverhampton","703221","Dr R Kharwadkar","M2017Q315SHIUFRQ","425.00","TPP - Public Health Contracts","190416891","31/01/2018","Contracts","Sexual Health","R5060"
"Wolverhampton City Council","http://opendatacommunities.org/id/metropolitan-district-council/wolverhampton","703221","Dr R Kharwadkar","M2017Q315SHCHLAQ","144.00","TPP - Public Health Contracts","190416893","31/01/2018","Contracts","Sexual Health","R5060"
"Wolverhampton City Council","http://opendatacommunities.org/id/metropolitan-district-council/wolverhampton","703221","Dr R Kharwadkar","M2017Q315HL304NQ","700.00","TPP - Public Health Contracts","190416896","31/01/2018","Contracts","Healthy Lifestyles","R5060"
"Wolverhampton City Council","http://opendatacommunities.org/id/metropolitan-district-council/wolverhampton","703221","Dr R Kharwadkar","M2017Q315SHCIFIQ","50.00","TPP - Public Health Contracts","190416888","31/01/2018","Contracts","Sexual Health","R5060"
"Wolverhampton City Council","http://opendatacommunities.org/id/metropolitan-district-council/wolverhampton","703221","Dr R Kharwadkar","M2017Q315SHCIFRQ","225.00","TPP - Public Health Contracts","190416889","31/01/2018","Contracts","Sexual Health","R5060"
"Wolverhampton City Council","http://opendatacommunities.org/id/metropolitan-district-council/wolverhampton","703225","Dr S Mittal","M2017Q315SHCIFIQ","300.00","TPP - Public Health Contracts","190416867","31/01/2018","Contracts","Sexual Health","R5060"
"Wolverhampton City Council","http://opendatacommunities.org/id/metropolitan-district-council/wolverhampton","703225","Dr S Mittal","46/17 LW","80.00","Medical Fees","190406620","03/01/2018","School Planning & Resources","Primary - Transport","R1400"
"Wolverhampton City Council","http://opendatacommunities.org/id/metropolitan-district-council/wolverhampton","703225","Dr S Mittal","M2017Q315SHCIFBQ","400.00","TPP - Public Health Contracts","190416869","31/01/2018","Contracts","Sexual Health","R5060"
"Wolverhampton City Council","http://opendatacommunities.org/id/metropolitan-district-council/wolverhampton","703225","Dr S Mittal","M2017Q315SHCIFRQ","90.00","TPP - Public Health Contracts","190416868","31/01/2018","Contracts","Sexual Health","R5060"
"Wolverhampton City Council","http://opendatacommunities.org/id/metropolitan-district-council/wolverhampton","703225","Dr S Mittal","FOS4030","73.86","Services - Professional Fees","190414750","24/01/2018","Looked After Children","Fostering Team & Allowances","R4400"
"Wolverhampton City Council","http://opendatacommunities.org/id/metropolitan-district-council/wolverhampton","703251","Drive DeVilbiss Health Care Limited","0001180801","124.20","Equipment - R & M","130201551","19/01/2018","Independent Living Service","Independent Living Service","R4003"
"Wolverhampton City Council","http://opendatacommunities.org/id/metropolitan-district-council/wolverhampton","703251","Drive DeVilbiss Health Care Limited","0001180801","362.25","Equipment - Purchase","130201551","19/01/2018","Independent Living Service","Independent Living Service","R4000"
"Wolverhampton City Council","http://opendatacommunities.org/id/metropolitan-district-council/wolverhampton","703251","Drive DeVilbiss Health Care Limited","0001180801","143.90","Equipment - Purchase","130201551","19/01/2018","Independent Living Service","Independent Living Service","R4000"
"Wolverhampton City Council","http://opendatacommunities.org/id/metropolitan-district-council/wolverhampton","703251","Drive DeVilbiss Health Care Limited","0001180801","828.00","Equipment - Purchase","130201551","19/01/2018","Independent Living Service","Independent Living Service","R4000"
"Wolverhampton City Council","http://opendatacommunities.org/id/metropolitan-district-council/wolverhampton","703251","Drive DeVilbiss Health Care Limited","0001180801","695.40","Equipment - Purchase","130201551","19/01/2018","Independent Living Service","Independent Living Service","R4000"
"Wolverhampton City Council","http://opendatacommunities.org/id/metropolitan-district-council/wolverhampton","703251","Drive DeVilbiss Health Care Limited","0001179578","340.00","Equipment - Purchase","130200505","03/01/2018","Independent Living Service","Independent Living Service","R4000"
"Wolverhampton City Council","http://opendatacommunities.org/id/metropolitan-district-council/wolverhampton","703251","Drive DeVilbiss Health Care Limited","0001173501","760.74","Equipment - Purchase","130199612","03/01/2018","Independent Living Service","Independent Living Service","R4000"
"Wolverhampton City Council","http://opendatacommunities.org/id/metropolitan-district-council/wolverhampton","703251","Drive DeVilbiss Health Care Limited","0001172784","410.00","Equipment - Purchase","130199610","03/01/2018","Independent Living Service","Independent Living Service","R4000"
"Wolverhampton City Council","http://opendatacommunities.org/id/metropolitan-district-council/wolverhampton","703251","Drive DeVilbiss Health Care Limited","0001180146","141.30","Equipment - R & M","130200804","05/01/2018","Independent Living Service","Independent Living Service","R4003"
"Wolverhampton City Council","http://opendatacommunities.org/id/metropolitan-district-council/wolverhampton","703251","Drive DeVilbiss Health Care Limited","0001170139","320.00","Equipment - Purchase","130198186","10/01/2018","Independent Living Service","Independent Living Service","R4000"
"Wolverhampton City Council","http://opendatacommunities.org/id/metropolitan-district-council/wolverhampton","703251","Drive DeVilbiss Health Care Limited","0001180793","2,102.65","Equipment - Purchase","130201550","24/01/2018","Independent Living Service","Independent Living Service","R4000"
"Wolverhampton City Council","http://opendatacommunities.org/id/metropolitan-district-council/wolverhampton","703251","Drive DeVilbiss Health Care Limited","0001184218","346.20","Equipment - Purchase","130202585","19/01/2018","Independent Living Service","Independent Living Service","R4000"
"Wolverhampton City Council","http://opendatacommunities.org/id/metropolitan-district-council/wolverhampton","703251","Drive DeVilbiss Health Care Limited","0001175773","626.23","Equipment - Purchase","130199616","03/01/2018","Independent Living Service","Independent Living Service","R4000"
"Wolverhampton City Council","http://opendatacommunities.org/id/metropolitan-district-council/wolverhampton","703251","Drive DeVilbiss Health Care Limited","0001176210","764.00","Equipment - R & M","130199617","03/01/2018","Independent Living Service","Independent Living Service","R4003"
"Wolverhampton City Council","http://opendatacommunities.org/id/metropolitan-district-council/wolverhampton","703251","Drive DeVilbiss Health Care Limited","0001170137","160.00","Equipment - Purchase","130197970","24/01/2018","Independent Living Service","Independent Living Service","R4000"
"Wolverhampton City Council","http://opendatacommunities.org/id/metropolitan-district-council/wolverhampton","703251","Drive DeVilbiss Health Care Limited","0001177122","492.00","Equipment - Purchase","130199621","03/01/2018","Independent Living Service","Independent Living Service","R4000"
"Wolverhampton City Council","http://opendatacommunities.org/id/metropolitan-district-council/wolverhampton","703251","Drive DeVilbiss Health Care Limited","0001178207","82.00","Equipment - Purchase","130200504","03/01/2018","Independent Living Service","Independent Living Service","R4000"
"Wolverhampton City Council","http://opendatacommunities.org/id/metropolitan-district-council/wolverhampton","703251","Drive DeVilbiss Health Care Limited","0001175387","5,500.00","Equipment - Purchase","130199615","03/01/2018","Independent Living Service","Independent Living Service","R4000"
"Wolverhampton City Council","http://opendatacommunities.org/id/metropolitan-district-council/wolverhampton","703251","Drive DeVilbiss Health Care Limited","0001174451","-340.00","Equipment - Purchase","130199613","03/01/2018","Independent Living Service","Independent Living Service","R4000"
"Wolverhampton City Council","http://opendatacommunities.org/id/metropolitan-district-council/wolverhampton","703253","Drs A E Williams D Derosa & M Elcock","M2017Q315SHIUDFQ","300.00","TPP - Public Health Contracts","190416870","31/01/2018","Contracts","Sexual Health","R5060"
"Wolverhampton City Council","http://opendatacommunities.org/id/metropolitan-district-council/wolverhampton","703256","Drs Design+Reprographic Supplies Limited","39102","234.10","Stationery","130201871","17/01/2018","Landscape","Landscape","R4308"
"Wolverhampton City Council","http://opendatacommunities.org/id/metropolitan-district-council/wolverhampton","703260","Drs R Bilas & A Thomas","M2017Q315HL312TQ","90.00","TPP - Public Health Contracts","190416833","31/01/2018","Contracts","Healthy Lifestyles","R5060"
"Wolverhampton City Council","http://opendatacommunities.org/id/metropolitan-district-council/wolverhampton","703260","Drs R Bilas & A Thomas","M2017Q315HL312NQ","30.00","TPP - Public Health Contracts","190416832","31/01/2018","Contracts","Healthy Lifestyles","R5060"
"Wolverhampton City Council","http://opendatacommunities.org/id/metropolitan-district-council/wolverhampton","703260","Drs R Bilas & A Thomas","M2017Q315HL1IPRQ","9.00","TPP - Public Health Contracts","190416830","31/01/2018","Contracts","Healthy Lifestyles","R5060"
"Wolverhampton City Council","http://opendatacommunities.org/id/metropolitan-district-council/wolverhampton","703260","Drs R Bilas & A Thomas","M2017Q315HL1IHCQ","4.90","TPP - Public Health Contracts","190416829","31/01/2018","Contracts","Healthy Lifestyles","R5060"
"Wolverhampton City Council","http://opendatacommunities.org/id/metropolitan-district-council/wolverhampton","703260","Drs R Bilas & A Thomas","M2017Q315HL304NQ","350.00","TPP - Public Health Contracts","190416831","31/01/2018","Contracts","Healthy Lifestyles","R5060"
"Wolverhampton City Council","http://opendatacommunities.org/id/metropolitan-district-council/wolverhampton","703267","D-Tech International Limited","6206","283.19","Computing - Repair and Maint","130198546","03/01/2018","Strategic Organisation Development","Global Budgets","R4533"
"Wolverhampton City Council","http://opendatacommunities.org/id/metropolitan-district-council/wolverhampton","703269","D-Tox","333771","73.08","Room Hire","130201347","26/01/2018","Facilities Management","Culwell Street Depot","R2201"
"Wolverhampton City Council","http://opendatacommunities.org/id/metropolitan-district-council/wolverhampton","703269","D-Tox","333770","73.08","Room Hire","130201346","26/01/2018","Facilities Management","Hickman Avenue Depot","R2201"
"Wolverhampton City Council","http://opendatacommunities.org/id/metropolitan-district-council/wolverhampton","703275","Dudley M B C","20026404 469934","100.00","TPP - Payments to Local Authorities","130202265","31/01/2018","Democratic Services","Register Office","R5100"
"Wolverhampton City Council","http://opendatacommunities.org/id/metropolitan-district-council/wolverhampton","703278","Dudley M.B.C.","20026404 448477","5,008.15","Services - Professional Fees","130186327","19/01/2018","Highways Maintenance","Winter Maintenance","R4400"
"Wolverhampton City Council","http://opendatacommunities.org/id/metropolitan-district-council/wolverhampton","703289","Duncan Street Primary Care Centre","M2017Q315HL2COMQ","25.00","TPP - Public Health Contracts","190416810","31/01/2018","Contracts","Healthy Lifestyles","R5060"
"Wolverhampton City Council","http://opendatacommunities.org/id/metropolitan-district-council/wolverhampton","703303","DWP (Dept For Work & Pensions)","My ref: TP140168/ER Your ref: CLK-755","627.00","Insurance - General","190415504","26/01/2018","Audit Services","Legal Liability","R4962"
"Wolverhampton City Council","http://opendatacommunities.org/id/metropolitan-district-council/wolverhampton","703318","E A Derry","840","1,800.00","Cleaning Supplies and Materials","130201873","26/01/2018","Environmental Maintenance","Ground Maintenance East","R2705"
"Wolverhampton City Council","http://opendatacommunities.org/id/metropolitan-district-council/wolverhampton","703324","E Manton Limited","10756","13,480.40","Construction and Conversion","130202083","19/01/2018","","Community Hubs","C1100"
"Wolverhampton City Council","http://opendatacommunities.org/id/metropolitan-district-council/wolverhampton","703334","E.On(Consumption Of Gas/Elec Units).","K11W014505.","11.15","Electricity","190415123","24/01/2018","City Development","Southside","R2100"
"Wolverhampton City Council","http://opendatacommunities.org/id/metropolitan-district-council/wolverhampton","703334","E.On(Consumption Of Gas/Elec Units).","H153237013","7.56","Gas","190406748","03/01/2018","Estates and Valuations","Industrial Premises ; Fordhouse Road","R2101"
"Wolverhampton City Council","http://opendatacommunities.org/id/metropolitan-district-council/wolverhampton","703334","E.On(Consumption Of Gas/Elec Units).","H153C90B9F","107.83","Electricity","190415517","26/01/2018","City Development","Southside","R2100"
"Wolverhampton City Council","http://opendatacommunities.org/id/metropolitan-district-council/wolverhampton","703334","E.On(Consumption Of Gas/Elec Units).","H14E0BA5B2","344.96","Electricity","190407940","05/01/2018","Corporate Asset Management","Central Utilities to Recharge","R2100"
"Wolverhampton City Council","http://opendatacommunities.org/id/metropolitan-district-council/wolverhampton","703334","E.On(Consumption Of Gas/Elec Units).","H154F1B326","25.73","Electricity","190415124","24/01/2018","Corporate Asset Management","Central Utilities to Recharge","R2100"
"Wolverhampton City Council","http://opendatacommunities.org/id/metropolitan-district-council/wolverhampton","703334","E.On(Consumption Of Gas/Elec Units).","015280602730 JAN18","806.71","Electricity","190415076","24/01/2018","Child Protection","Childrens with Disabilities Team","R2100"
"Wolverhampton City Council","http://opendatacommunities.org/id/metropolitan-district-council/wolverhampton","703334","E.On(Consumption Of Gas/Elec Units).","H1516F8E46(1)","40.00","Gas","190406747","03/01/2018","Estates and Valuations","Industrial Premises ; Fordhouse Road","R2101"
"Wolverhampton City Council","http://opendatacommunities.org/id/metropolitan-district-council/wolverhampton","703334","E.On(Consumption Of Gas/Elec Units).","H15555EE7F","57.28","Electricity","190415518","26/01/2018","City Development","Southside","R2100"
"Wolverhampton City Council","http://opendatacommunities.org/id/metropolitan-district-council/wolverhampton","703334","E.On(Consumption Of Gas/Elec Units).","H1516F8E46","8.91","Gas","190406746","03/01/2018","Estates and Valuations","Industrial Premises ; Fordhouse Road","R2101"
"Wolverhampton City Council","http://opendatacommunities.org/id/metropolitan-district-council/wolverhampton","703339","Eagle Music (Jim Duncan)","281","600.00","Marketing \ Non-staff advertising","130199623","05/01/2018","Visitor Economy","Civic Halls Non-Direct Event Management Account","R4317"
"Wolverhampton City Council","http://opendatacommunities.org/id/metropolitan-district-council/wolverhampton","703339","Eagle Music (Jim Duncan)","281","100.00","Hire of Vehicles","130199623","05/01/2018","Visitor Economy","Civic Halls Non-Direct Event Management Account","R3200"
"Wolverhampton City Council","http://opendatacommunities.org/id/metropolitan-district-council/wolverhampton","703339","Eagle Music (Jim Duncan)","358 AG","300.00","Marketing \ Non-staff advertising","130157730","26/01/2018","Visitor Economy","Art Gallery","R4317"
"Wolverhampton City Council","http://opendatacommunities.org/id/metropolitan-district-council/wolverhampton","703339","Eagle Music (Jim Duncan)","358 AG","-300.00","Marketing \ Non-staff advertising","130157730","26/01/2018","Visitor Economy","Art Gallery","R4317"
"Wolverhampton City Council","http://opendatacommunities.org/id/metropolitan-district-council/wolverhampton","703339","Eagle Music (Jim Duncan)","358 AG","300.00","Marketing \ Non-staff advertising","130157730","26/01/2018","Visitor Economy","Art Gallery","R4317"
"Wolverhampton City Council","http://opendatacommunities.org/id/metropolitan-district-council/wolverhampton","703340","Eagle Supplies Limited","19829","31.95","Equipment - Purchase","190414523","24/01/2018","Fleet Services","Fleet Management","R4000"
"Wolverhampton City Council","http://opendatacommunities.org/id/metropolitan-district-council/wolverhampton","703340","Eagle Supplies Limited","19829","15.50","Equipment - Purchase","190414523","24/01/2018","Fleet Services","Fleet Management","R4000"
"Wolverhampton City Council","http://opendatacommunities.org/id/metropolitan-district-council/wolverhampton","703353","East Park Medical Practice","M2017Q315SHIUDFQ","100.00","TPP - Public Health Contracts","190416903","31/01/2018","Contracts","Sexual Health","R5060"
"Wolverhampton City Council","http://opendatacommunities.org/id/metropolitan-district-council/wolverhampton","703353","East Park Medical Practice","M2017Q315SHCHLAQ","128.00","TPP - Public Health Contracts","190416905","31/01/2018","Contracts","Sexual Health","R5060"
"Wolverhampton City Council","http://opendatacommunities.org/id/metropolitan-district-council/wolverhampton","703353","East Park Medical Practice","FOS4031","78.00","Services - Professional Fees","190415515","26/01/2018","Looked After Children","Fostering Team & Allowances","R4400"
"Wolverhampton City Council","http://opendatacommunities.org/id/metropolitan-district-council/wolverhampton","703353","East Park Medical Practice","M2017Q315SHCIFBQ","80.00","TPP - Public Health Contracts","190416902","31/01/2018","Contracts","Sexual Health","R5060"
"Wolverhampton City Council","http://opendatacommunities.org/id/metropolitan-district-council/wolverhampton","703353","East Park Medical Practice","M2017Q315SHIUFRQ","25.00","TPP - Public Health Contracts","190416904","31/01/2018","Contracts","Sexual Health","R5060"
"Wolverhampton City Council","http://opendatacommunities.org/id/metropolitan-district-council/wolverhampton","703353","East Park Medical Practice","M2017Q315SHCIFIQ","150.00","TPP - Public Health Contracts","190416900","31/01/2018","Contracts","Sexual Health","R5060"
"Wolverhampton City Council","http://opendatacommunities.org/id/metropolitan-district-council/wolverhampton","703353","East Park Medical Practice","M2017Q315SHCIFRQ","225.00","TPP - Public Health Contracts","190416901","31/01/2018","Contracts","Sexual Health","R5060"
"Wolverhampton City Council","http://opendatacommunities.org/id/metropolitan-district-council/wolverhampton","703353","East Park Medical Practice","M2017Q315SMSCMRQ","2,461.00","TPP - Public Health Contracts","190416899","31/01/2018","Contracts","Alcohol and Drug","R5060"
"Wolverhampton City Council","http://opendatacommunities.org/id/metropolitan-district-council/wolverhampton","703359","Eastfield Community Association","1105 HEA17","100.00","Equipment - Purchase","130202439","19/01/2018","Headstart","Headstart Hubs","R4000"
"Wolverhampton City Council","http://opendatacommunities.org/id/metropolitan-district-council/wolverhampton","703359","Eastfield Community Association","1107AHEA17","3,120.00","Rent","130203322","24/01/2018","Headstart","Headstart Hubs","R2200"
"Wolverhampton City Council","http://opendatacommunities.org/id/metropolitan-district-council/wolverhampton","703359","Eastfield Community Association","1106 HEA17","90.00","Room Hire","130202440","19/01/2018","Headstart","Headstart Hubs","R2201"
"Wolverhampton City Council","http://opendatacommunities.org/id/metropolitan-district-council/wolverhampton","703371","Eclipse Access Solutions Limited","17/0361/SAG","395.00","Grants paid out","190410241","10/01/2018","","Disabled Facilities Grants","C5000"
"Wolverhampton City Council","http://opendatacommunities.org/id/metropolitan-district-council/wolverhampton","703371","Eclipse Access Solutions Limited","17/0297/SAG","1,700.00","Grants paid out","190408479","05/01/2018","","Disabled Facilities Grants","C5000"
"Wolverhampton City Council","http://opendatacommunities.org/id/metropolitan-district-council/wolverhampton","703371","Eclipse Access Solutions Limited","17/0145/SAG","4,940.00","Grants paid out","190410242","10/01/2018","","Disabled Facilities Grants","C5000"
"Wolverhampton City Council","http://opendatacommunities.org/id/metropolitan-district-council/wolverhampton","703371","Eclipse Access Solutions Limited","0012701","5,970.00","Construction and Conversion","130199624","10/01/2018","","Adaptations for People with Disabilites","C1100"
"Wolverhampton City Council","http://opendatacommunities.org/id/metropolitan-district-council/wolverhampton","703371","Eclipse Access Solutions Limited","0012694","375.00","Adaptations","130198547","03/01/2018","Independent Living Service","Independent Living Service","R4411"
"Wolverhampton City Council","http://opendatacommunities.org/id/metropolitan-district-council/wolverhampton","703377","Eden Brown Limited","1140974","973.47","Agency Staff","130200626","24/01/2018","Revenues & Benefits","Revenues","R1100"
"Wolverhampton City Council","http://opendatacommunities.org/id/metropolitan-district-council/wolverhampton","703377","Eden Brown Limited","1137925","914.27","Agency Staff","130198388","03/01/2018","Revenues & Benefits","Revenues","R1100"
"Wolverhampton City Council","http://opendatacommunities.org/id/metropolitan-district-council/wolverhampton","703377","Eden Brown Limited","1141695","185.04","Agency Staff","130201198","31/01/2018","Emergency Duty Team","Emergency Duty Team","R1100"
"Wolverhampton City Council","http://opendatacommunities.org/id/metropolitan-district-council/wolverhampton","703377","Eden Brown Limited","1141696","164.48","Agency Staff","130201199","31/01/2018","Emergency Duty Team","Emergency Duty Team","R1100"
"Wolverhampton City Council","http://opendatacommunities.org/id/metropolitan-district-council/wolverhampton","703377","Eden Brown Limited","1140975","1,484.00","Agency Staff","130200627","24/01/2018","Capital Programme","Head of Projects and Works","R1100"
"Wolverhampton City Council","http://opendatacommunities.org/id/metropolitan-district-council/wolverhampton","703377","Eden Brown Limited","1137922","861.65","Agency Staff","130198385","03/01/2018","Revenues & Benefits","Revenues","R1100"
"Wolverhampton City Council","http://opendatacommunities.org/id/metropolitan-district-council/wolverhampton","703377","Eden Brown Limited","1140177","1,187.20","Agency Staff","130199634","17/01/2018","Capital Programme","Head of Projects and Works","R1100"
"Wolverhampton City Council","http://opendatacommunities.org/id/metropolitan-district-council/wolverhampton","703377","Eden Brown Limited","1141559","532.78","Agency Staff","130200924","31/01/2018","Revenues & Benefits","Revenues","R1100"
"Wolverhampton City Council","http://opendatacommunities.org/id/metropolitan-district-council/wolverhampton","703377","Eden Brown Limited","1139127","1,484.00","Agency Staff","130199629","10/01/2018","Capital Programme","Head of Projects and Works","R1100"
"Wolverhampton City Council","http://opendatacommunities.org/id/metropolitan-district-council/wolverhampton","703377","Eden Brown Limited","1141558","302.57","Agency Staff","130200923","31/01/2018","Revenues & Benefits","Revenues","R1100"
"Wolverhampton City Council","http://opendatacommunities.org/id/metropolitan-district-council/wolverhampton","703377","Eden Brown Limited","1141557","572.24","Agency Staff","130200922","31/01/2018","Revenues & Benefits","Revenues","R1100"
"Wolverhampton City Council","http://opendatacommunities.org/id/metropolitan-district-council/wolverhampton","703377","Eden Brown Limited","1137924","1,484.00","Agency Staff","130198387","03/01/2018","Capital Programme","Head of Projects and Works","R1100"
"Wolverhampton City Council","http://opendatacommunities.org/id/metropolitan-district-council/wolverhampton","703377","Eden Brown Limited","1137923","966.89","Agency Staff","130198386","03/01/2018","Revenues & Benefits","Revenues","R1100"
"Wolverhampton City Council","http://opendatacommunities.org/id/metropolitan-district-council/wolverhampton","703377","Eden Brown Limited","1141556","539.36","Agency Staff","130200921","31/01/2018","Revenues & Benefits","Revenues","R1100"
"Wolverhampton City Council","http://opendatacommunities.org/id/metropolitan-district-council/wolverhampton","703377","Eden Brown Limited","1137921","1,111.60","Agency Staff","130198384","03/01/2018","Revenues & Benefits","Revenues","R1100"
"Wolverhampton City Council","http://opendatacommunities.org/id/metropolitan-district-council/wolverhampton","703381","Eden Support Limited","24121720180105","41.16","TPP - Day Care","190408856","10/01/2018","Learning Disabilities Care Purchasing","LD Care Purchasing (Spot Placements)","R5430"
"Wolverhampton City Council","http://opendatacommunities.org/id/metropolitan-district-council/wolverhampton","703381","Eden Support Limited","24121720180105","50.00","TPP - Day Care","190408856","10/01/2018","Learning Disabilities Care Purchasing","LD Care Purchasing (Spot Placements)","R5430"
"Wolverhampton City Council","http://opendatacommunities.org/id/metropolitan-district-council/wolverhampton","703381","Eden Support Limited","24121720180105","96.04","TPP - Day Care","190408856","10/01/2018","Learning Disabilities Care Purchasing","LD Care Purchasing (Spot Placements)","R5430"
"Wolverhampton City Council","http://opendatacommunities.org/id/metropolitan-district-council/wolverhampton","703381","Eden Support Limited","24121720180105","54.88","TPP - Day Care","190408856","10/01/2018","Learning Disabilities Care Purchasing","LD Care Purchasing (Spot Placements)","R5430"
"Wolverhampton City Council","http://opendatacommunities.org/id/metropolitan-district-council/wolverhampton","703381","Eden Support Limited","24121720180105","150.00","TPP - Day Care","190408856","10/01/2018","Learning Disabilities Care Purchasing","LD Care Purchasing (Spot Placements)","R5430"
"Wolverhampton City Council","http://opendatacommunities.org/id/metropolitan-district-council/wolverhampton","703381","Eden Support Limited","24121720180105","100.00","TPP - Day Care","190408856","10/01/2018","Learning Disabilities Care Purchasing","LD Care Purchasing (Spot Placements)","R5430"
"Wolverhampton City Council","http://opendatacommunities.org/id/metropolitan-district-council/wolverhampton","703381","Eden Support Limited","24121720180105","102.90","TPP - Day Care","190408856","10/01/2018","Learning Disabilities Care Purchasing","LD Care Purchasing (Spot Placements)","R5430"
"Wolverhampton City Council","http://opendatacommunities.org/id/metropolitan-district-council/wolverhampton","703381","Eden Support Limited","24121720180105","273.00","TPP - Day Care","190408856","10/01/2018","Learning Disabilities Care Purchasing","LD Care Purchasing (Spot Placements)","R5430"
"Wolverhampton City Council","http://opendatacommunities.org/id/metropolitan-district-council/wolverhampton","703381","Eden Support Limited","24121720180105","240.10","TPP - Day Care","190408856","10/01/2018","Learning Disabilities Care Purchasing","LD Care Purchasing (Spot Placements)","R5430"
"Wolverhampton City Council","http://opendatacommunities.org/id/metropolitan-district-council/wolverhampton","703381","Eden Support Limited","24121720180105","192.08","TPP - Day Care","190408856","10/01/2018","Learning Disabilities Care Purchasing","LD Care Purchasing (Spot Placements)","R5430"
"Wolverhampton City Council","http://opendatacommunities.org/id/metropolitan-district-council/wolverhampton","703381","Eden Support Limited","24121720180105","100.00","TPP - Day Care","190408856","10/01/2018","Learning Disabilities Care Purchasing","LD Care Purchasing (Spot Placements)","R5430"
"Wolverhampton City Council","http://opendatacommunities.org/id/metropolitan-district-council/wolverhampton","703381","Eden Support Limited","24121720180105","250.00","TPP - Day Care","190408856","10/01/2018","Learning Disabilities Care Purchasing","LD Care Purchasing (Spot Placements)","R5430"
"Wolverhampton City Council","http://opendatacommunities.org/id/metropolitan-district-council/wolverhampton","703381","Eden Support Limited","24121720180105","123.48","TPP - Day Care","190408856","10/01/2018","Learning Disabilities Care Purchasing","LD Care Purchasing (Spot Placements)","R5430"
"Wolverhampton City Council","http://opendatacommunities.org/id/metropolitan-district-council/wolverhampton","703381","Eden Support Limited","24121720180105","150.00","TPP - Day Care","190408856","10/01/2018","Learning Disabilities Care Purchasing","LD Care Purchasing (Spot Placements)","R5430"
"Wolverhampton City Council","http://opendatacommunities.org/id/metropolitan-district-council/wolverhampton","703381","Eden Support Limited","24121720180105","82.32","TPP - Day Care","190408856","10/01/2018","Learning Disabilities Care Purchasing","LD Care Purchasing (Spot Placements)","R5430"
"Wolverhampton City Council","http://opendatacommunities.org/id/metropolitan-district-council/wolverhampton","703381","Eden Support Limited","24121720180105","200.00","TPP - Day Care","190408856","10/01/2018","Learning Disabilities Care Purchasing","LD Care Purchasing (Spot Placements)","R5430"
"Wolverhampton City Council","http://opendatacommunities.org/id/metropolitan-district-council/wolverhampton","703381","Eden Support Limited","24121720180105","96.04","TPP - Day Care","190408856","10/01/2018","Learning Disabilities Care Purchasing","LD Care Purchasing (Spot Placements)","R5430"
"Wolverhampton City Council","http://opendatacommunities.org/id/metropolitan-district-council/wolverhampton","703381","Eden Support Limited","24121720180105","48.02","TPP - Day Care","190408856","10/01/2018","Learning Disabilities Care Purchasing","LD Care Purchasing (Spot Placements)","R5430"
"Wolverhampton City Council","http://opendatacommunities.org/id/metropolitan-district-council/wolverhampton","703381","Eden Support Limited","24121720180105","164.64","TPP - Day Care","190408856","10/01/2018","Learning Disabilities Care Purchasing","LD Care Purchasing (Spot Placements)","R5430"
"Wolverhampton City Council","http://opendatacommunities.org/id/metropolitan-district-council/wolverhampton","703381","Eden Support Limited","24121720180105","100.00","TPP - Day Care","190408856","10/01/2018","Learning Disabilities Care Purchasing","LD Care Purchasing (Spot Placements)","R5430"
"Wolverhampton City Council","http://opendatacommunities.org/id/metropolitan-district-council/wolverhampton","703381","Eden Support Limited","24121720180105","264.11","TPP - Day Care","190408856","10/01/2018","Learning Disabilities Care Purchasing","LD Care Purchasing (Spot Placements)","R5430"
"Wolverhampton City Council","http://opendatacommunities.org/id/metropolitan-district-council/wolverhampton","703381","Eden Support Limited","24121720180105","264.11","TPP - Day Care","190408856","10/01/2018","Learning Disabilities Care Purchasing","LD Care Purchasing (Spot Placements)","R5430"
"Wolverhampton City Council","http://opendatacommunities.org/id/metropolitan-district-council/wolverhampton","703381","Eden Support Limited","24121720180105","185.22","TPP - Day Care","190408856","10/01/2018","Learning Disabilities Care Purchasing","LD Care Purchasing (Spot Placements)","R5430"
"Wolverhampton City Council","http://opendatacommunities.org/id/metropolitan-district-council/wolverhampton","703381","Eden Support Limited","24121720180105","250.00","TPP - Day Care","190408856","10/01/2018","Learning Disabilities Care Purchasing","LD Care Purchasing (Spot Placements)","R5430"
"Wolverhampton City Council","http://opendatacommunities.org/id/metropolitan-district-council/wolverhampton","703381","Eden Support Limited","24121720180105","455.00","TPP - Day Care","190408856","10/01/2018","Learning Disabilities Care Purchasing","LD Care Purchasing (Spot Placements)","R5430"
"Wolverhampton City Council","http://opendatacommunities.org/id/metropolitan-district-council/wolverhampton","703381","Eden Support Limited","24121720180105","455.00","TPP - Day Care","190408856","10/01/2018","Learning Disabilities Care Purchasing","LD Care Purchasing (Spot Placements)","R5430"
"Wolverhampton City Council","http://opendatacommunities.org/id/metropolitan-district-council/wolverhampton","703381","Eden Support Limited","17121720180105","91.00","TPP - Day Care","190408855","10/01/2018","Learning Disabilities Care Purchasing","LD Care Purchasing (Spot Placements)","R5430"
"Wolverhampton City Council","http://opendatacommunities.org/id/metropolitan-district-council/wolverhampton","703381","Eden Support Limited","17121720180105","48.02","TPP - Day Care","190408855","10/01/2018","Learning Disabilities Care Purchasing","LD Care Purchasing (Spot Placements)","R5430"
"Wolverhampton City Council","http://opendatacommunities.org/id/metropolitan-district-council/wolverhampton","703381","Eden Support Limited","17121720180105","192.08","TPP - Day Care","190408855","10/01/2018","Learning Disabilities Care Purchasing","LD Care Purchasing (Spot Placements)","R5430"
"Wolverhampton City Council","http://opendatacommunities.org/id/metropolitan-district-council/wolverhampton","703381","Eden Support Limited","17121720180105","50.00","TPP - Day Care","190408855","10/01/2018","Learning Disabilities Care Purchasing","LD Care Purchasing (Spot Placements)","R5430"
"Wolverhampton City Council","http://opendatacommunities.org/id/metropolitan-district-council/wolverhampton","703381","Eden Support Limited","17121720180105","100.00","TPP - Day Care","190408855","10/01/2018","Learning Disabilities Care Purchasing","LD Care Purchasing (Spot Placements)","R5430"
"Wolverhampton City Council","http://opendatacommunities.org/id/metropolitan-district-council/wolverhampton","703381","Eden Support Limited","17121720180105","137.20","TPP - Day Care","190408855","10/01/2018","Learning Disabilities Care Purchasing","LD Care Purchasing (Spot Placements)","R5430"
"Wolverhampton City Council","http://opendatacommunities.org/id/metropolitan-district-council/wolverhampton","703381","Eden Support Limited","17121720180105","185.22","TPP - Day Care","190408855","10/01/2018","Learning Disabilities Care Purchasing","LD Care Purchasing (Spot Placements)","R5430"
"Wolverhampton City Council","http://opendatacommunities.org/id/metropolitan-district-council/wolverhampton","703381","Eden Support Limited","17121720180105","100.00","TPP - Day Care","190408855","10/01/2018","Learning Disabilities Care Purchasing","LD Care Purchasing (Spot Placements)","R5430"
"Wolverhampton City Council","http://opendatacommunities.org/id/metropolitan-district-council/wolverhampton","703381","Eden Support Limited","17121720180105","91.00","TPP - Day Care","190408855","10/01/2018","Learning Disabilities Care Purchasing","LD Care Purchasing (Spot Placements)","R5430"
"Wolverhampton City Council","http://opendatacommunities.org/id/metropolitan-district-council/wolverhampton","703381","Eden Support Limited","17121720180105","455.00","TPP - Day Care","190408855","10/01/2018","Learning Disabilities Care Purchasing","LD Care Purchasing (Spot Placements)","R5430"
"Wolverhampton City Council","http://opendatacommunities.org/id/metropolitan-district-council/wolverhampton","703381","Eden Support Limited","17121720180105","96.04","TPP - Day Care","190408855","10/01/2018","Learning Disabilities Care Purchasing","LD Care Purchasing (Spot Placements)","R5430"
"Wolverhampton City Council","http://opendatacommunities.org/id/metropolitan-district-council/wolverhampton","703381","Eden Support Limited","17121720180105","54.88","TPP - Day Care","190408855","10/01/2018","Learning Disabilities Care Purchasing","LD Care Purchasing (Spot Placements)","R5430"
"Wolverhampton City Council","http://opendatacommunities.org/id/metropolitan-district-council/wolverhampton","703381","Eden Support Limited","17121720180105","50.00","TPP - Day Care","190408855","10/01/2018","Learning Disabilities Care Purchasing","LD Care Purchasing (Spot Placements)","R5430"
"Wolverhampton City Council","http://opendatacommunities.org/id/metropolitan-district-council/wolverhampton","703381","Eden Support Limited","17121720180105","48.02","TPP - Day Care","190408855","10/01/2018","Learning Disabilities Care Purchasing","LD Care Purchasing (Spot Placements)","R5430"
"Wolverhampton City Council","http://opendatacommunities.org/id/metropolitan-district-council/wolverhampton","703381","Eden Support Limited","17121720180105","100.00","TPP - Day Care","190408855","10/01/2018","Learning Disabilities Care Purchasing","LD Care Purchasing (Spot Placements)","R5430"
"Wolverhampton City Council","http://opendatacommunities.org/id/metropolitan-district-council/wolverhampton","703381","Eden Support Limited","17121720180105","102.90","TPP - Day Care","190408855","10/01/2018","Learning Disabilities Care Purchasing","LD Care Purchasing (Spot Placements)","R5430"
"Wolverhampton City Council","http://opendatacommunities.org/id/metropolitan-district-council/wolverhampton","703381","Eden Support Limited","17121720180105","96.04","TPP - Day Care","190408855","10/01/2018","Learning Disabilities Care Purchasing","LD Care Purchasing (Spot Placements)","R5430"
"Wolverhampton City Council","http://opendatacommunities.org/id/metropolitan-district-council/wolverhampton","703381","Eden Support Limited","17121720180105","123.48","TPP - Day Care","190408855","10/01/2018","Learning Disabilities Care Purchasing","LD Care Purchasing (Spot Placements)","R5430"
"Wolverhampton City Council","http://opendatacommunities.org/id/metropolitan-district-council/wolverhampton","703381","Eden Support Limited","17121720180105","100.00","TPP - Day Care","190408855","10/01/2018","Learning Disabilities Care Purchasing","LD Care Purchasing (Spot Placements)","R5430"
"Wolverhampton City Council","http://opendatacommunities.org/id/metropolitan-district-council/wolverhampton","703381","Eden Support Limited","17121720180105","82.32","TPP - Day Care","190408855","10/01/2018","Learning Disabilities Care Purchasing","LD Care Purchasing (Spot Placements)","R5430"
"Wolverhampton City Council","http://opendatacommunities.org/id/metropolitan-district-council/wolverhampton","703381","Eden Support Limited","17121720180105","200.00","TPP - Day Care","190408855","10/01/2018","Learning Disabilities Care Purchasing","LD Care Purchasing (Spot Placements)","R5430"
"Wolverhampton City Council","http://opendatacommunities.org/id/metropolitan-district-council/wolverhampton","703381","Eden Support Limited","17121720180105","100.00","TPP - Day Care","190408855","10/01/2018","Learning Disabilities Care Purchasing","LD Care Purchasing (Spot Placements)","R5430"
"Wolverhampton City Council","http://opendatacommunities.org/id/metropolitan-district-council/wolverhampton","703381","Eden Support Limited","17121720180105","264.11","TPP - Day Care","190408855","10/01/2018","Learning Disabilities Care Purchasing","LD Care Purchasing (Spot Placements)","R5430"
"Wolverhampton City Council","http://opendatacommunities.org/id/metropolitan-district-council/wolverhampton","703381","Eden Support Limited","17121720180105","264.11","TPP - Day Care","190408855","10/01/2018","Learning Disabilities Care Purchasing","LD Care Purchasing (Spot Placements)","R5430"
"Wolverhampton City Council","http://opendatacommunities.org/id/metropolitan-district-council/wolverhampton","703381","Eden Support Limited","03121720180103","273.00","TPP - Day Care","190407790","05/01/2018","Learning Disabilities Care Purchasing","LD Care Purchasing (Spot Placements)","R5430"
"Wolverhampton City Council","http://opendatacommunities.org/id/metropolitan-district-council/wolverhampton","703381","Eden Support Limited","03121720180103","240.10","TPP - Day Care","190407790","05/01/2018","Learning Disabilities Care Purchasing","LD Care Purchasing (Spot Placements)","R5430"
"Wolverhampton City Council","http://opendatacommunities.org/id/metropolitan-district-council/wolverhampton","703381","Eden Support Limited","03121720180103","192.08","TPP - Day Care","190407790","05/01/2018","Learning Disabilities Care Purchasing","LD Care Purchasing (Spot Placements)","R5430"
"Wolverhampton City Council","http://opendatacommunities.org/id/metropolitan-district-council/wolverhampton","703381","Eden Support Limited","03121720180103","100.00","TPP - Day Care","190407790","05/01/2018","Learning Disabilities Care Purchasing","LD Care Purchasing (Spot Placements)","R5430"
"Wolverhampton City Council","http://opendatacommunities.org/id/metropolitan-district-council/wolverhampton","703381","Eden Support Limited","03121720180103","250.00","TPP - Day Care","190407790","05/01/2018","Learning Disabilities Care Purchasing","LD Care Purchasing (Spot Placements)","R5430"
"Wolverhampton City Council","http://opendatacommunities.org/id/metropolitan-district-council/wolverhampton","703381","Eden Support Limited","03121720180103","137.20","TPP - Day Care","190407790","05/01/2018","Learning Disabilities Care Purchasing","LD Care Purchasing (Spot Placements)","R5430"
"Wolverhampton City Council","http://opendatacommunities.org/id/metropolitan-district-council/wolverhampton","703381","Eden Support Limited","03121720180103","123.48","TPP - Day Care","190407790","05/01/2018","Learning Disabilities Care Purchasing","LD Care Purchasing (Spot Placements)","R5430"
"Wolverhampton City Council","http://opendatacommunities.org/id/metropolitan-district-council/wolverhampton","703381","Eden Support Limited","03121720180103","150.00","TPP - Day Care","190407790","05/01/2018","Learning Disabilities Care Purchasing","LD Care Purchasing (Spot Placements)","R5430"
"Wolverhampton City Council","http://opendatacommunities.org/id/metropolitan-district-council/wolverhampton","703381","Eden Support Limited","03121720180103","82.32","TPP - Day Care","190407790","05/01/2018","Learning Disabilities Care Purchasing","LD Care Purchasing (Spot Placements)","R5430"
"Wolverhampton City Council","http://opendatacommunities.org/id/metropolitan-district-council/wolverhampton","703381","Eden Support Limited","03121720180103","200.00","TPP - Day Care","190407790","05/01/2018","Learning Disabilities Care Purchasing","LD Care Purchasing (Spot Placements)","R5430"
"Wolverhampton City Council","http://opendatacommunities.org/id/metropolitan-district-council/wolverhampton","703381","Eden Support Limited","03121720180103","100.00","TPP - Day Care","190407790","05/01/2018","Learning Disabilities Care Purchasing","LD Care Purchasing (Spot Placements)","R5430"
"Wolverhampton City Council","http://opendatacommunities.org/id/metropolitan-district-council/wolverhampton","703381","Eden Support Limited","03121720180103","264.11","TPP - Day Care","190407790","05/01/2018","Learning Disabilities Care Purchasing","LD Care Purchasing (Spot Placements)","R5430"
"Wolverhampton City Council","http://opendatacommunities.org/id/metropolitan-district-council/wolverhampton","703381","Eden Support Limited","03121720180103","264.11","TPP - Day Care","190407790","05/01/2018","Learning Disabilities Care Purchasing","LD Care Purchasing (Spot Placements)","R5430"
"Wolverhampton City Council","http://opendatacommunities.org/id/metropolitan-district-council/wolverhampton","703381","Eden Support Limited","03121720180103","185.22","TPP - Day Care","190407790","05/01/2018","Learning Disabilities Care Purchasing","LD Care Purchasing (Spot Placements)","R5430"
"Wolverhampton City Council","http://opendatacommunities.org/id/metropolitan-district-council/wolverhampton","703381","Eden Support Limited","03121720180103","250.00","TPP - Day Care","190407790","05/01/2018","Learning Disabilities Care Purchasing","LD Care Purchasing (Spot Placements)","R5430"
"Wolverhampton City Council","http://opendatacommunities.org/id/metropolitan-district-council/wolverhampton","703381","Eden Support Limited","03121720180103","455.00","TPP - Day Care","190407790","05/01/2018","Learning Disabilities Care Purchasing","LD Care Purchasing (Spot Placements)","R5430"
"Wolverhampton City Council","http://opendatacommunities.org/id/metropolitan-district-council/wolverhampton","703381","Eden Support Limited","03121720180103","455.00","TPP - Day Care","190407790","05/01/2018","Learning Disabilities Care Purchasing","LD Care Purchasing (Spot Placements)","R5430"
"Wolverhampton City Council","http://opendatacommunities.org/id/metropolitan-district-council/wolverhampton","703381","Eden Support Limited","03121720180103","50.00","TPP - Day Care","190407790","05/01/2018","Learning Disabilities Care Purchasing","LD Care Purchasing (Spot Placements)","R5430"
"Wolverhampton City Council","http://opendatacommunities.org/id/metropolitan-district-council/wolverhampton","703381","Eden Support Limited","03121720180103","96.04","TPP - Day Care","190407790","05/01/2018","Learning Disabilities Care Purchasing","LD Care Purchasing (Spot Placements)","R5430"
"Wolverhampton City Council","http://opendatacommunities.org/id/metropolitan-district-council/wolverhampton","703381","Eden Support Limited","03121720180103","54.88","TPP - Day Care","190407790","05/01/2018","Learning Disabilities Care Purchasing","LD Care Purchasing (Spot Placements)","R5430"
"Wolverhampton City Council","http://opendatacommunities.org/id/metropolitan-district-council/wolverhampton","703381","Eden Support Limited","03121720180103","150.00","TPP - Day Care","190407790","05/01/2018","Learning Disabilities Care Purchasing","LD Care Purchasing (Spot Placements)","R5430"
"Wolverhampton City Council","http://opendatacommunities.org/id/metropolitan-district-council/wolverhampton","703381","Eden Support Limited","03121720180103","100.00","TPP - Day Care","190407790","05/01/2018","Learning Disabilities Care Purchasing","LD Care Purchasing (Spot Placements)","R5430"
"Wolverhampton City Council","http://opendatacommunities.org/id/metropolitan-district-council/wolverhampton","703381","Eden Support Limited","03121720180103","102.90","TPP - Day Care","190407790","05/01/2018","Learning Disabilities Care Purchasing","LD Care Purchasing (Spot Placements)","R5430"
"Wolverhampton City Council","http://opendatacommunities.org/id/metropolitan-district-council/wolverhampton","703381","Eden Support Limited","03121720180103","150.92","TPP - Day Care","190407790","05/01/2018","Learning Disabilities Care Purchasing","LD Care Purchasing (Spot Placements)","R5430"
"Wolverhampton City Council","http://opendatacommunities.org/id/metropolitan-district-council/wolverhampton","703381","Eden Support Limited","03121720180103","150.92","TPP - Day Care","190407790","05/01/2018","Learning Disabilities Care Purchasing","LD Care Purchasing (Spot Placements)","R5430"
"Wolverhampton City Council","http://opendatacommunities.org/id/metropolitan-district-council/wolverhampton","703381","Eden Support Limited","31121720180105","264.11","TPP - Day Care","190408857","10/01/2018","Learning Disabilities Care Purchasing","LD Care Purchasing (Spot Placements)","R5430"
"Wolverhampton City Council","http://opendatacommunities.org/id/metropolitan-district-council/wolverhampton","703381","Eden Support Limited","31121720180105","185.22","TPP - Day Care","190408857","10/01/2018","Learning Disabilities Care Purchasing","LD Care Purchasing (Spot Placements)","R5430"
"Wolverhampton City Council","http://opendatacommunities.org/id/metropolitan-district-council/wolverhampton","703381","Eden Support Limited","31121720180105","91.00","TPP - Day Care","190408857","10/01/2018","Learning Disabilities Care Purchasing","LD Care Purchasing (Spot Placements)","R5430"
"Wolverhampton City Council","http://opendatacommunities.org/id/metropolitan-district-council/wolverhampton","703381","Eden Support Limited","31121720180105","455.00","TPP - Day Care","190408857","10/01/2018","Learning Disabilities Care Purchasing","LD Care Purchasing (Spot Placements)","R5430"
"Wolverhampton City Council","http://opendatacommunities.org/id/metropolitan-district-council/wolverhampton","703381","Eden Support Limited","31121720180105","96.04","TPP - Day Care","190408857","10/01/2018","Learning Disabilities Care Purchasing","LD Care Purchasing (Spot Placements)","R5430"
"Wolverhampton City Council","http://opendatacommunities.org/id/metropolitan-district-council/wolverhampton","703381","Eden Support Limited","31121720180105","54.88","TPP - Day Care","190408857","10/01/2018","Learning Disabilities Care Purchasing","LD Care Purchasing (Spot Placements)","R5430"
"Wolverhampton City Council","http://opendatacommunities.org/id/metropolitan-district-council/wolverhampton","703381","Eden Support Limited","31121720180105","102.90","TPP - Day Care","190408857","10/01/2018","Learning Disabilities Care Purchasing","LD Care Purchasing (Spot Placements)","R5430"
"Wolverhampton City Council","http://opendatacommunities.org/id/metropolitan-district-council/wolverhampton","703381","Eden Support Limited","31121720180105","109.76","TPP - Day Care","190408857","10/01/2018","Learning Disabilities Care Purchasing","LD Care Purchasing (Spot Placements)","R5430"
"Wolverhampton City Council","http://opendatacommunities.org/id/metropolitan-district-council/wolverhampton","703381","Eden Support Limited","31121720180105","41.16","TPP - Day Care","190408857","10/01/2018","Learning Disabilities Care Purchasing","LD Care Purchasing (Spot Placements)","R5430"
"Wolverhampton City Council","http://opendatacommunities.org/id/metropolitan-district-council/wolverhampton","703381","Eden Support Limited","31121720180105","192.08","TPP - Day Care","190408857","10/01/2018","Learning Disabilities Care Purchasing","LD Care Purchasing (Spot Placements)","R5430"
"Wolverhampton City Council","http://opendatacommunities.org/id/metropolitan-district-council/wolverhampton","703381","Eden Support Limited","31121720180105","123.48","TPP - Day Care","190408857","10/01/2018","Learning Disabilities Care Purchasing","LD Care Purchasing (Spot Placements)","R5430"
"Wolverhampton City Council","http://opendatacommunities.org/id/metropolitan-district-council/wolverhampton","703381","Eden Support Limited","31121720180105","82.32","TPP - Day Care","190408857","10/01/2018","Learning Disabilities Care Purchasing","LD Care Purchasing (Spot Placements)","R5430"
"Wolverhampton City Council","http://opendatacommunities.org/id/metropolitan-district-council/wolverhampton","703381","Eden Support Limited","31121720180105","264.11","TPP - Day Care","190408857","10/01/2018","Learning Disabilities Care Purchasing","LD Care Purchasing (Spot Placements)","R5430"
"Wolverhampton City Council","http://opendatacommunities.org/id/metropolitan-district-council/wolverhampton","703381","Eden Support Limited","31121720180105","96.04","TPP - Day Care","190408857","10/01/2018","Learning Disabilities Care Purchasing","LD Care Purchasing (Spot Placements)","R5430"
"Wolverhampton City Council","http://opendatacommunities.org/id/metropolitan-district-council/wolverhampton","703381","Eden Support Limited","31121720180105","48.02","TPP - Day Care","190408857","10/01/2018","Learning Disabilities Care Purchasing","LD Care Purchasing (Spot Placements)","R5430"
"Wolverhampton City Council","http://opendatacommunities.org/id/metropolitan-district-council/wolverhampton","703381","Eden Support Limited","10121720180103","273.00","TPP - Day Care","190407791","05/01/2018","Learning Disabilities Care Purchasing","LD Care Purchasing (Spot Placements)","R5430"
"Wolverhampton City Council","http://opendatacommunities.org/id/metropolitan-district-council/wolverhampton","703381","Eden Support Limited","10121720180103","240.10","TPP - Day Care","190407791","05/01/2018","Learning Disabilities Care Purchasing","LD Care Purchasing (Spot Placements)","R5430"
"Wolverhampton City Council","http://opendatacommunities.org/id/metropolitan-district-council/wolverhampton","703381","Eden Support Limited","10121720180103","192.08","TPP - Day Care","190407791","05/01/2018","Learning Disabilities Care Purchasing","LD Care Purchasing (Spot Placements)","R5430"
"Wolverhampton City Council","http://opendatacommunities.org/id/metropolitan-district-council/wolverhampton","703381","Eden Support Limited","10121720180103","100.00","TPP - Day Care","190407791","05/01/2018","Learning Disabilities Care Purchasing","LD Care Purchasing (Spot Placements)","R5430"
"Wolverhampton City Council","http://opendatacommunities.org/id/metropolitan-district-council/wolverhampton","703381","Eden Support Limited","10121720180103","250.00","TPP - Day Care","190407791","05/01/2018","Learning Disabilities Care Purchasing","LD Care Purchasing (Spot Placements)","R5430"
"Wolverhampton City Council","http://opendatacommunities.org/id/metropolitan-district-council/wolverhampton","703381","Eden Support Limited","10121720180103","137.20","TPP - Day Care","190407791","05/01/2018","Learning Disabilities Care Purchasing","LD Care Purchasing (Spot Placements)","R5430"
"Wolverhampton City Council","http://opendatacommunities.org/id/metropolitan-district-council/wolverhampton","703381","Eden Support Limited","10121720180103","123.48","TPP - Day Care","190407791","05/01/2018","Learning Disabilities Care Purchasing","LD Care Purchasing (Spot Placements)","R5430"
"Wolverhampton City Council","http://opendatacommunities.org/id/metropolitan-district-council/wolverhampton","703381","Eden Support Limited","10121720180103","150.00","TPP - Day Care","190407791","05/01/2018","Learning Disabilities Care Purchasing","LD Care Purchasing (Spot Placements)","R5430"
"Wolverhampton City Council","http://opendatacommunities.org/id/metropolitan-district-council/wolverhampton","703381","Eden Support Limited","10121720180103","82.32","TPP - Day Care","190407791","05/01/2018","Learning Disabilities Care Purchasing","LD Care Purchasing (Spot Placements)","R5430"
"Wolverhampton City Council","http://opendatacommunities.org/id/metropolitan-district-council/wolverhampton","703381","Eden Support Limited","10121720180103","200.00","TPP - Day Care","190407791","05/01/2018","Learning Disabilities Care Purchasing","LD Care Purchasing (Spot Placements)","R5430"
"Wolverhampton City Council","http://opendatacommunities.org/id/metropolitan-district-council/wolverhampton","703381","Eden Support Limited","10121720180103","100.00","TPP - Day Care","190407791","05/01/2018","Learning Disabilities Care Purchasing","LD Care Purchasing (Spot Placements)","R5430"
"Wolverhampton City Council","http://opendatacommunities.org/id/metropolitan-district-council/wolverhampton","703381","Eden Support Limited","10121720180103","264.11","TPP - Day Care","190407791","05/01/2018","Learning Disabilities Care Purchasing","LD Care Purchasing (Spot Placements)","R5430"
"Wolverhampton City Council","http://opendatacommunities.org/id/metropolitan-district-council/wolverhampton","703381","Eden Support Limited","10121720180103","264.11","TPP - Day Care","190407791","05/01/2018","Learning Disabilities Care Purchasing","LD Care Purchasing (Spot Placements)","R5430"
"Wolverhampton City Council","http://opendatacommunities.org/id/metropolitan-district-council/wolverhampton","703381","Eden Support Limited","10121720180103","185.22","TPP - Day Care","190407791","05/01/2018","Learning Disabilities Care Purchasing","LD Care Purchasing (Spot Placements)","R5430"
"Wolverhampton City Council","http://opendatacommunities.org/id/metropolitan-district-council/wolverhampton","703381","Eden Support Limited","10121720180103","250.00","TPP - Day Care","190407791","05/01/2018","Learning Disabilities Care Purchasing","LD Care Purchasing (Spot Placements)","R5430"
"Wolverhampton City Council","http://opendatacommunities.org/id/metropolitan-district-council/wolverhampton","703381","Eden Support Limited","10121720180103","455.00","TPP - Day Care","190407791","05/01/2018","Learning Disabilities Care Purchasing","LD Care Purchasing (Spot Placements)","R5430"
"Wolverhampton City Council","http://opendatacommunities.org/id/metropolitan-district-council/wolverhampton","703381","Eden Support Limited","10121720180103","455.00","TPP - Day Care","190407791","05/01/2018","Learning Disabilities Care Purchasing","LD Care Purchasing (Spot Placements)","R5430"
"Wolverhampton City Council","http://opendatacommunities.org/id/metropolitan-district-council/wolverhampton","703381","Eden Support Limited","10121720180103","50.00","TPP - Day Care","190407791","05/01/2018","Learning Disabilities Care Purchasing","LD Care Purchasing (Spot Placements)","R5430"
"Wolverhampton City Council","http://opendatacommunities.org/id/metropolitan-district-council/wolverhampton","703381","Eden Support Limited","10121720180103","96.04","TPP - Day Care","190407791","05/01/2018","Learning Disabilities Care Purchasing","LD Care Purchasing (Spot Placements)","R5430"
"Wolverhampton City Council","http://opendatacommunities.org/id/metropolitan-district-council/wolverhampton","703381","Eden Support Limited","10121720180103","54.88","TPP - Day Care","190407791","05/01/2018","Learning Disabilities Care Purchasing","LD Care Purchasing (Spot Placements)","R5430"
"Wolverhampton City Council","http://opendatacommunities.org/id/metropolitan-district-council/wolverhampton","703381","Eden Support Limited","10121720180103","150.00","TPP - Day Care","190407791","05/01/2018","Learning Disabilities Care Purchasing","LD Care Purchasing (Spot Placements)","R5430"
"Wolverhampton City Council","http://opendatacommunities.org/id/metropolitan-district-council/wolverhampton","703381","Eden Support Limited","10121720180103","100.00","TPP - Day Care","190407791","05/01/2018","Learning Disabilities Care Purchasing","LD Care Purchasing (Spot Placements)","R5430"
"Wolverhampton City Council","http://opendatacommunities.org/id/metropolitan-district-council/wolverhampton","703381","Eden Support Limited","10121720180103","102.90","TPP - Day Care","190407791","05/01/2018","Learning Disabilities Care Purchasing","LD Care Purchasing (Spot Placements)","R5430"
"Wolverhampton City Council","http://opendatacommunities.org/id/metropolitan-district-council/wolverhampton","703381","Eden Support Limited","10121720180103","150.92","TPP - Day Care","190407791","05/01/2018","Learning Disabilities Care Purchasing","LD Care Purchasing (Spot Placements)","R5430"
"Wolverhampton City Council","http://opendatacommunities.org/id/metropolitan-district-council/wolverhampton","703381","Eden Support Limited","10121720180103","150.92","TPP - Day Care","190407791","05/01/2018","Learning Disabilities Care Purchasing","LD Care Purchasing (Spot Placements)","R5430"
"Wolverhampton City Council","http://opendatacommunities.org/id/metropolitan-district-council/wolverhampton","703383","Edexcel  (Was Edexcel Limited)","1705398","514.00","Equipment - Purchase","130195135","10/01/2018","Inclusion Support","Inclusion Support","R4000"
"Wolverhampton City Council","http://opendatacommunities.org/id/metropolitan-district-council/wolverhampton","703383","Edexcel  (Was Edexcel Limited)","1705398","3.75","Equipment - Purchase","130195135","10/01/2018","Inclusion Support","Inclusion Support","R4000"
"Wolverhampton City Council","http://opendatacommunities.org/id/metropolitan-district-council/wolverhampton","703395","Edmundson Electrical Limited","019 - 022941","13.78","Materials","130199636","05/01/2018","Maintenance Programme","Civic Centre Repairs & Maintenance","R4007"
"Wolverhampton City Council","http://opendatacommunities.org/id/metropolitan-district-council/wolverhampton","703395","Edmundson Electrical Limited","019 - 023667","71.25","Materials","130199637","03/01/2018","Maintenance Programme","Civic Centre Repairs & Maintenance","R4007"
"Wolverhampton City Council","http://opendatacommunities.org/id/metropolitan-district-council/wolverhampton","703403","Stern Electric Company Ltd","90364","1,155.00","Equipment - Hire","130202084","17/01/2018","Adult Education","The Maltings","R4001"
"Wolverhampton City Council","http://opendatacommunities.org/id/metropolitan-district-council/wolverhampton","703437","Electoral Reform Services Limited","ERS1703907B","300.00","Services - Professional Fees","130202589","26/01/2018","Democratic Services","Electoral Registration","R4400"
"Wolverhampton City Council","http://opendatacommunities.org/id/metropolitan-district-council/wolverhampton","703444","Veriserv Limited","102657","462.87","R&M - Departmental planned (external)","130202709","26/01/2018","Maintenance Programme","Centralised R&M","R2001"
"Wolverhampton City Council","http://opendatacommunities.org/id/metropolitan-district-council/wolverhampton","703444","Veriserv Limited","102187","69.62","R&M - Departmental planned (external)","130200630","10/01/2018","Maintenance Programme","Centralised R&M","R2001"
"Wolverhampton City Council","http://opendatacommunities.org/id/metropolitan-district-council/wolverhampton","703444","Veriserv Limited","101938","24.50","R&M - Departmental planned (external)","130200506","10/01/2018","Maintenance Programme","Centralised R&M","R2001"
"Wolverhampton City Council","http://opendatacommunities.org/id/metropolitan-district-council/wolverhampton","703444","Veriserv Limited","102491","120.36","R&M - Departmental planned (external)","130201351","17/01/2018","Maintenance Programme","Centralised R&M","R2001"
"Wolverhampton City Council","http://opendatacommunities.org/id/metropolitan-district-council/wolverhampton","703444","Veriserv Limited","102444","210.63","R&M - Departmental planned (external)","130201348","12/01/2018","Maintenance Programme","Centralised R&M","R2001"
"Wolverhampton City Council","http://opendatacommunities.org/id/metropolitan-district-council/wolverhampton","703444","Veriserv Limited","102492","82.01","R&M - Departmental planned (external)","130202707","24/01/2018","Maintenance Programme","Centralised R&M","R2001"
"Wolverhampton City Council","http://opendatacommunities.org/id/metropolitan-district-council/wolverhampton","703444","Veriserv Limited","102445","419.49","R&M - Departmental planned (external)","130201349","17/01/2018","Maintenance Programme","Centralised R&M","R2001"
"Wolverhampton City Council","http://opendatacommunities.org/id/metropolitan-district-council/wolverhampton","703444","Veriserv Limited","102771","84.96","R&M - Departmental planned (external)","130202710","26/01/2018","Maintenance Programme","Centralised R&M","R2001"
"Wolverhampton City Council","http://opendatacommunities.org/id/metropolitan-district-council/wolverhampton","703444","Veriserv Limited","102113","473.80","R&M - Departmental planned (external)","130200507","10/01/2018","Maintenance Programme","Centralised R&M","R2001"
"Wolverhampton City Council","http://opendatacommunities.org/id/metropolitan-district-council/wolverhampton","703444","Veriserv Limited","102044","307.14","R&M - Departmental planned (external)","130200629","10/01/2018","Maintenance Programme","Centralised R&M","R2001"
"Wolverhampton City Council","http://opendatacommunities.org/id/metropolitan-district-council/wolverhampton","703444","Veriserv Limited","102374","423.03","R&M - Departmental planned (external)","130201876","19/01/2018","Maintenance Programme","Centralised R&M","R2001"
"Wolverhampton City Council","http://opendatacommunities.org/id/metropolitan-district-council/wolverhampton","703444","Veriserv Limited","102517","884.65","R&M - Departmental planned (external)","130201352","17/01/2018","Maintenance Programme","Centralised R&M","R2001"
"Wolverhampton City Council","http://opendatacommunities.org/id/metropolitan-district-council/wolverhampton","703444","Veriserv Limited","102319","37.17","R&M - Departmental planned (external)","130200631","10/01/2018","Maintenance Programme","Centralised R&M","R2001"
"Wolverhampton City Council","http://opendatacommunities.org/id/metropolitan-district-council/wolverhampton","703444","Veriserv Limited","102370","24.50","R&M - Departmental planned (external)","130200925","10/01/2018","Maintenance Programme","Centralised R&M","R2001"
"Wolverhampton City Council","http://opendatacommunities.org/id/metropolitan-district-council/wolverhampton","703444","Veriserv Limited","102772","271.99","R&M - Departmental planned (external)","130202711","26/01/2018","Maintenance Programme","Centralised R&M","R2001"
"Wolverhampton City Council","http://opendatacommunities.org/id/metropolitan-district-council/wolverhampton","703444","Veriserv Limited","102446","223.61","R&M - Departmental planned (external)","130201350","17/01/2018","Maintenance Programme","Centralised R&M","R2001"
"Wolverhampton City Council","http://opendatacommunities.org/id/metropolitan-district-council/wolverhampton","703444","Veriserv Limited","102616","46.02","R&M - Departmental planned (external)","130202708","26/01/2018","Maintenance Programme","Centralised R&M","R2001"
"Wolverhampton City Council","http://opendatacommunities.org/id/metropolitan-district-council/wolverhampton","703444","Veriserv Limited","102320","24.50","R&M - Departmental planned (external)","130200508","10/01/2018","Maintenance Programme","Centralised R&M","R2001"
"Wolverhampton City Council","http://opendatacommunities.org/id/metropolitan-district-council/wolverhampton","703447","Elf Software Limited","INV-40737","1,600.00","Computing - Purchase of Software","130203143","24/01/2018","Corporate Asset Management","Site Development Asset Management","R4531"
"Wolverhampton City Council","http://opendatacommunities.org/id/metropolitan-district-council/wolverhampton","703447","Elf Software Limited","40727","5,098.00","Computing - Purchase of Software","130199638","03/01/2018","Corporate Asset Management","Site Development Asset Management","R4531"
"Wolverhampton City Council","http://opendatacommunities.org/id/metropolitan-district-council/wolverhampton","703457","Elliott Group Limited","15206580","158.40","Hire of Plant","130201877","31/01/2018","Environmental Maintenance","Ground Maintenance West","R3201"
"Wolverhampton City Council","http://opendatacommunities.org/id/metropolitan-district-council/wolverhampton","703457","Elliott Group Limited","15184005","158.40","Hire of Plant","130199639","10/01/2018","Environmental Maintenance","Ground Maintenance West","R3201"
"Wolverhampton City Council","http://opendatacommunities.org/id/metropolitan-district-council/wolverhampton","703464","Elmwood School","022/17","4,534.96","TPP - Alternative Provision of Education","130199640","03/01/2018","Standards and Vulnerable Pupils","SEN Education OOC","R5037"
"Wolverhampton City Council","http://opendatacommunities.org/id/metropolitan-district-council/wolverhampton","703481","Empower Housing Association Limited","FIR02630118RM1","1,425.95","Rent","130199642","12/01/2018","Learning Disabilities Care Purchasing","LD Care Purchasing (Spot Placements)","R2200"
"Wolverhampton City Council","http://opendatacommunities.org/id/metropolitan-district-council/wolverhampton","703481","Empower Housing Association Limited","FIR01700118RM3","1,416.90","Rent","130199641","12/01/2018","Learning Disabilities Care Purchasing","LD Care Purchasing (Spot Placements)","R2200"
"Wolverhampton City Council","http://opendatacommunities.org/id/metropolitan-district-council/wolverhampton","703491","Engage Youth Empowerment Services","WMP2","560.00","Services - Professional Fees","130200632","12/01/2018","Community Safety","SWP - Gangs","R4400"
"Wolverhampton City Council","http://opendatacommunities.org/id/metropolitan-district-council/wolverhampton","703504","Enterprise Managed Services Limited","90653568","10,270.07","TPP - Waste Disposal","130199645","12/01/2018","Waste and Recycling Service","Waste Disposal - General","R5003"
"Wolverhampton City Council","http://opendatacommunities.org/id/metropolitan-district-council/wolverhampton","703504","Enterprise Managed Services Limited","0090648360","1,274.34","TPP - Waste Disposal","130200509","03/01/2018","Markets","Bilston Market and Licensed Operations","R5003"
"Wolverhampton City Council","http://opendatacommunities.org/id/metropolitan-district-council/wolverhampton","703504","Enterprise Managed Services Limited","0090649965","177.76","TPP - Waste Disposal","130199644","05/01/2018","Early Intervention","EIP Locality 8 � Children�s Village","R5003"
"Wolverhampton City Council","http://opendatacommunities.org/id/metropolitan-district-council/wolverhampton","703504","Enterprise Managed Services Limited","0090649965","32.32","TPP - Waste Disposal","130199644","05/01/2018","Early Intervention","EIP Locality 8 � Children�s Village","R5003"
"Wolverhampton City Council","http://opendatacommunities.org/id/metropolitan-district-council/wolverhampton","703504","Enterprise Managed Services Limited","0090654886","350.00","Services - Professional Fees","130200634","26/01/2018","Public Protection","Regulatory Services - Works in Default","R4400"
"Wolverhampton City Council","http://opendatacommunities.org/id/metropolitan-district-council/wolverhampton","703504","Enterprise Managed Services Limited","0090642462","150.00","TPP - Waste Disposal","130201878","17/01/2018","Facilities Management","Victoria Square, Block 11","R5003"
"Wolverhampton City Council","http://opendatacommunities.org/id/metropolitan-district-council/wolverhampton","703511","Enviro Technology Services PLC","24160","1,809.69","Services - Professional Fees","130200927","05/01/2018","Public Protection","Air Quality and Noise","R4400"
"Wolverhampton City Council","http://opendatacommunities.org/id/metropolitan-district-council/wolverhampton","703511","Enviro Technology Services PLC","24152","1,809.69","Services - Professional Fees","130200510","17/01/2018","Public Protection","Air Quality and Noise","R4400"
"Wolverhampton City Council","http://opendatacommunities.org/id/metropolitan-district-council/wolverhampton","703512","Environment Agency","CRCS8046837_201472","1,290.00","Carbon Reduction","190407446","05/01/2018","Corporate Asset Management","Central Utilities to Recharge","R2901"
"Wolverhampton City Council","http://opendatacommunities.org/id/metropolitan-district-council/wolverhampton","703523","Epos Group","0000064047","134.00","Equipment - Purchase","130198190","12/01/2018","Catering","Civic Centre Catering","R4000"
"Wolverhampton City Council","http://opendatacommunities.org/id/metropolitan-district-council/wolverhampton","703523","Epos Group","SUP004249","450.00","Equipment - R & M","130202443","17/01/2018","Catering","Education Catering - General Overheads","R4003"
"Wolverhampton City Council","http://opendatacommunities.org/id/metropolitan-district-council/wolverhampton","703523","Epos Group","SUP004332","100.00","Equipment - Purchase","130200511","03/01/2018","Catering","Education Catering - General Overheads","R4000"
"Wolverhampton City Council","http://opendatacommunities.org/id/metropolitan-district-council/wolverhampton","703531","Ergo-Ike Limited","16,859","1,468.00","Equipment - Purchase","130195539","03/01/2018","Independent Living Service","Independent Living Service","R4000"
"Wolverhampton City Council","http://opendatacommunities.org/id/metropolitan-district-council/wolverhampton","703531","Ergo-Ike Limited","16,859","-1,468.00","Equipment - Purchase","130195539","03/01/2018","Independent Living Service","Independent Living Service","R4000"
"Wolverhampton City Council","http://opendatacommunities.org/id/metropolitan-district-council/wolverhampton","703531","Ergo-Ike Limited","16,859","1,398.00","Equipment - Purchase","130195539","03/01/2018","Independent Living Service","Independent Living Service","R4000"
"Wolverhampton City Council","http://opendatacommunities.org/id/metropolitan-district-council/wolverhampton","703531","Ergo-Ike Limited","16923","830.00","Equipment - Purchase","130199646","12/01/2018","Independent Living Service","Independent Living Service","R4000"
"Wolverhampton City Council","http://opendatacommunities.org/id/metropolitan-district-council/wolverhampton","703531","Ergo-Ike Limited","16923","18.00","Equipment - Purchase","130199646","12/01/2018","Independent Living Service","Independent Living Service","R4000"
"Wolverhampton City Council","http://opendatacommunities.org/id/metropolitan-district-council/wolverhampton","703533","Ernst & Young Llp","GB10700045238","67,265.65","Services - Professional Fees","130200635","12/01/2018","Strategic Finance","Strategic Finance","R4400"
"Wolverhampton City Council","http://opendatacommunities.org/id/metropolitan-district-council/wolverhampton","703535","Escape Mobility Company Limited.","DEB 000496 / FACT 20180004","730.00","Equipment - R & M","130201879","17/01/2018","Strategic Organisation Development","Blakenhall Community & Healthy Living Centre","R4003"
"Wolverhampton City Council","http://opendatacommunities.org/id/metropolitan-district-council/wolverhampton","703536","Esendex Limited","14658068","12.50","Comms - Mobile Telephones","130200805","26/01/2018","Democratic Services","Electoral Registration","R4507"
"Wolverhampton City Council","http://opendatacommunities.org/id/metropolitan-district-council/wolverhampton","703560","Euro Food Brands Limited","IN00724389","213.66","Provisions (Resale)","130201356","12/01/2018","Visitor Economy","Bantock - Tea Rooms","R4102"
"Wolverhampton City Council","http://opendatacommunities.org/id/metropolitan-district-council/wolverhampton","703560","Euro Food Brands Limited","IN00724389","-213.66","Provisions (Resale)","130201356","12/01/2018","Visitor Economy","Bantock - Tea Rooms","R4102"
"Wolverhampton City Council","http://opendatacommunities.org/id/metropolitan-district-council/wolverhampton","703560","Euro Food Brands Limited","IN00724389","213.66","Provisions (Resale)","130201356","12/01/2018","Visitor Economy","Bantock - Tea Rooms","R4102"
"Wolverhampton City Council","http://opendatacommunities.org/id/metropolitan-district-council/wolverhampton","703560","Euro Food Brands Limited","IN00728847","296.41","Provisions (Resale)","130202085","31/01/2018","Visitor Economy","Bantock - Tea Rooms","R4102"
"Wolverhampton City Council","http://opendatacommunities.org/id/metropolitan-district-council/wolverhampton","703560","Euro Food Brands Limited","IN00728847","-296.41","Provisions (Resale)","130202085","31/01/2018","Visitor Economy","Bantock - Tea Rooms","R4102"
"Wolverhampton City Council","http://opendatacommunities.org/id/metropolitan-district-council/wolverhampton","703560","Euro Food Brands Limited","IN00728847","296.41","Provisions (Resale)","130202085","31/01/2018","Visitor Economy","Bantock - Tea Rooms","R4102"
"Wolverhampton City Council","http://opendatacommunities.org/id/metropolitan-district-council/wolverhampton","703560","Euro Food Brands Limited","IN00723850","-194.04","Provisions (Resale)","130199648","05/01/2018","Visitor Economy","Bantock - Tea Rooms","R4102"
"Wolverhampton City Council","http://opendatacommunities.org/id/metropolitan-district-council/wolverhampton","703560","Euro Food Brands Limited","IN00723850","194.04","Provisions (Resale)","130199648","05/01/2018","Visitor Economy","Bantock - Tea Rooms","R4102"
"Wolverhampton City Council","http://opendatacommunities.org/id/metropolitan-district-council/wolverhampton","703560","Euro Food Brands Limited","IN00723850","194.04","Provisions (Resale)","130199648","05/01/2018","Visitor Economy","Bantock - Tea Rooms","R4102"
"Wolverhampton City Council","http://opendatacommunities.org/id/metropolitan-district-council/wolverhampton","703575","Evac+Chair International Limited","INV103914","90.00","Equipment - R & M","130200806","03/01/2018","Adult Education","Beckminster","R4003"
"Wolverhampton City Council","http://opendatacommunities.org/id/metropolitan-district-council/wolverhampton","703575","Evac+Chair International Limited","INV104340","145.00","Equipment - R & M","130202989","26/01/2018","Strategic Organisation Development","Adult Lending Library","R4003"
"Wolverhampton City Council","http://opendatacommunities.org/id/metropolitan-district-council/wolverhampton","703576","Evans Halshaw Ford","922609","27.47","Equipment - Purchase","190415692","26/01/2018","Fleet Services","Fleet Management","R4000"
"Wolverhampton City Council","http://opendatacommunities.org/id/metropolitan-district-council/wolverhampton","703576","Evans Halshaw Ford","922986","2.58","Equipment - Purchase","190415698","26/01/2018","Fleet Services","Fleet Management","R4000"
"Wolverhampton City Council","http://opendatacommunities.org/id/metropolitan-district-council/wolverhampton","703576","Evans Halshaw Ford","922986","2.16","Equipment - Purchase","190415698","26/01/2018","Fleet Services","Fleet Management","R4000"
"Wolverhampton City Council","http://opendatacommunities.org/id/metropolitan-district-council/wolverhampton","703576","Evans Halshaw Ford","920629","30.10","Equipment - Purchase","190410175","10/01/2018","Fleet Services","Fleet Management","R4000"
"Wolverhampton City Council","http://opendatacommunities.org/id/metropolitan-district-council/wolverhampton","703576","Evans Halshaw Ford","921613","14.99","Equipment - Purchase","190415688","26/01/2018","Fleet Services","Fleet Management","R4000"
"Wolverhampton City Council","http://opendatacommunities.org/id/metropolitan-district-council/wolverhampton","703576","Evans Halshaw Ford","922838","21.10","Equipment - Purchase","190415696","26/01/2018","Fleet Services","Fleet Management","R4000"
"Wolverhampton City Council","http://opendatacommunities.org/id/metropolitan-district-council/wolverhampton","703576","Evans Halshaw Ford","922821","38.10","Equipment - Purchase","190414548","24/01/2018","Fleet Services","Fleet Management","R4000"
"Wolverhampton City Council","http://opendatacommunities.org/id/metropolitan-district-council/wolverhampton","703576","Evans Halshaw Ford","921404","45.55","Equipment - Purchase","190410759","12/01/2018","Fleet Services","Fleet Management","R4000"
"Wolverhampton City Council","http://opendatacommunities.org/id/metropolitan-district-council/wolverhampton","703576","Evans Halshaw Ford","922430","21.10","Equipment - Purchase","190415691","26/01/2018","Fleet Services","Fleet Management","R4000"
"Wolverhampton City Council","http://opendatacommunities.org/id/metropolitan-district-council/wolverhampton","703576","Evans Halshaw Ford","923342","15.00","Equipment - Purchase","190415699","26/01/2018","Fleet Services","Fleet Management","R4000"
"Wolverhampton City Council","http://opendatacommunities.org/id/metropolitan-district-council/wolverhampton","703576","Evans Halshaw Ford","920822","11.56","Equipment - Purchase","190414546","24/01/2018","Fleet Services","Fleet Management","R4000"
"Wolverhampton City Council","http://opendatacommunities.org/id/metropolitan-district-council/wolverhampton","703576","Evans Halshaw Ford","920822","38.96","Equipment - Purchase","190414546","24/01/2018","Fleet Services","Fleet Management","R4000"
"Wolverhampton City Council","http://opendatacommunities.org/id/metropolitan-district-council/wolverhampton","703576","Evans Halshaw Ford","920822","16.83","Equipment - Purchase","190414546","24/01/2018","Fleet Services","Fleet Management","R4000"
"Wolverhampton City Council","http://opendatacommunities.org/id/metropolitan-district-council/wolverhampton","703576","Evans Halshaw Ford","921052","13.41","Equipment - Purchase","190415685","26/01/2018","Fleet Services","Fleet Management","R4000"
"Wolverhampton City Council","http://opendatacommunities.org/id/metropolitan-district-council/wolverhampton","703576","Evans Halshaw Ford","921636","33.46","Equipment - Purchase","190415689","26/01/2018","Fleet Services","Fleet Management","R4000"
"Wolverhampton City Council","http://opendatacommunities.org/id/metropolitan-district-council/wolverhampton","703576","Evans Halshaw Ford","920425","8.29","Equipment - Purchase","190410174","10/01/2018","Fleet Services","Fleet Management","R4000"
"Wolverhampton City Council","http://opendatacommunities.org/id/metropolitan-district-council/wolverhampton","703576","Evans Halshaw Ford","922640","29.07","Equipment - Purchase","190415693","26/01/2018","Fleet Services","Fleet Management","R4000"
"Wolverhampton City Council","http://opendatacommunities.org/id/metropolitan-district-council/wolverhampton","703576","Evans Halshaw Ford","922640","35.92","Equipment - Purchase","190415693","26/01/2018","Fleet Services","Fleet Management","R4000"
"Wolverhampton City Council","http://opendatacommunities.org/id/metropolitan-district-council/wolverhampton","703576","Evans Halshaw Ford","922640","36.87","Equipment - Purchase","190415693","26/01/2018","Fleet Services","Fleet Management","R4000"
"Wolverhampton City Council","http://opendatacommunities.org/id/metropolitan-district-council/wolverhampton","703576","Evans Halshaw Ford","922760","38.96","Equipment - Purchase","190415695","26/01/2018","Fleet Services","Fleet Management","R4000"
"Wolverhampton City Council","http://opendatacommunities.org/id/metropolitan-district-council/wolverhampton","703576","Evans Halshaw Ford","922396","31.80","Equipment - Purchase","190415690","26/01/2018","Fleet Services","Fleet Management","R4000"
"Wolverhampton City Council","http://opendatacommunities.org/id/metropolitan-district-council/wolverhampton","703576","Evans Halshaw Ford","922753","10.51","Equipment - Purchase","190415694","26/01/2018","Fleet Services","Fleet Management","R4000"
"Wolverhampton City Council","http://opendatacommunities.org/id/metropolitan-district-council/wolverhampton","703576","Evans Halshaw Ford","921058","144.43","Equipment - Purchase","190415686","26/01/2018","Fleet Services","Fleet Management","R4000"
"Wolverhampton City Council","http://opendatacommunities.org/id/metropolitan-district-council/wolverhampton","703576","Evans Halshaw Ford","920795","33.28","Equipment - Purchase","190410176","10/01/2018","Fleet Services","Fleet Management","R4000"
"Wolverhampton City Council","http://opendatacommunities.org/id/metropolitan-district-council/wolverhampton","703576","Evans Halshaw Ford","919397","175.79","Equipment - Purchase","190410173","10/01/2018","Fleet Services","Fleet Management","R4000"
"Wolverhampton City Council","http://opendatacommunities.org/id/metropolitan-district-council/wolverhampton","703576","Evans Halshaw Ford","237334","15.00","Services - Professional Fees","190415668","26/01/2018","Fleet Services","Fleet Management","R4400"
"Wolverhampton City Council","http://opendatacommunities.org/id/metropolitan-district-council/wolverhampton","703576","Evans Halshaw Ford","237334","76.00","Services - Professional Fees","190415668","26/01/2018","Fleet Services","Fleet Management","R4400"
"Wolverhampton City Council","http://opendatacommunities.org/id/metropolitan-district-council/wolverhampton","703576","Evans Halshaw Ford","237334","86.81","Services - Professional Fees","190415668","26/01/2018","Fleet Services","Fleet Management","R4400"
"Wolverhampton City Council","http://opendatacommunities.org/id/metropolitan-district-council/wolverhampton","703576","Evans Halshaw Ford","922897","19.53","Equipment - Purchase","190415697","26/01/2018","Fleet Services","Fleet Management","R4000"
"Wolverhampton City Council","http://opendatacommunities.org/id/metropolitan-district-council/wolverhampton","703576","Evans Halshaw Ford","922897","16.83","Equipment - Purchase","190415697","26/01/2018","Fleet Services","Fleet Management","R4000"
"Wolverhampton City Council","http://opendatacommunities.org/id/metropolitan-district-council/wolverhampton","703576","Evans Halshaw Ford","922308","46.70","Equipment - Purchase","190414547","24/01/2018","Fleet Services","Fleet Management","R4000"
"Wolverhampton City Council","http://opendatacommunities.org/id/metropolitan-district-council/wolverhampton","703576","Evans Halshaw Ford","921172","21.10","Equipment - Purchase","190415687","26/01/2018","Fleet Services","Fleet Management","R4000"
"Wolverhampton City Council","http://opendatacommunities.org/id/metropolitan-district-council/wolverhampton","703600","F & M Building Services","16/0700/DFG","3,409.00","Grants paid out","190408477","05/01/2018","","Disabled Facilities Grants","C5000"
"Wolverhampton City Council","http://opendatacommunities.org/id/metropolitan-district-council/wolverhampton","703605","F.4.K. Limited","TFT Spring 2018 Inst 1","9,620.64","Grant Payments","190415171","26/01/2018","Early Years","Early Years Entitlement Funding for Disadvantaged 2 Year Olds","R4700"
"Wolverhampton City Council","http://opendatacommunities.org/id/metropolitan-district-council/wolverhampton","703605","F.4.K. Limited","NEF Spring 2018 INST 1","17,442.00","TPP - Private Nursery Education Funding","190415159","26/01/2018","Early Years","Early Years Universal Entitlement for 3 and 4 Year Olds","R5035"
"Wolverhampton City Council","http://opendatacommunities.org/id/metropolitan-district-council/wolverhampton","703609","F.W. Bickford & Sons Limited","327687","1,785.00","Hire of Vehicles","190414527","24/01/2018","Fleet Services","Fleet Management","R3200"
"Wolverhampton City Council","http://opendatacommunities.org/id/metropolitan-district-council/wolverhampton","703627","Falon Nameplates Limited","2172415","45.80","Materials for resale","130199650","03/01/2018","Bereavement Services","Crematorium","R4008"
"Wolverhampton City Council","http://opendatacommunities.org/id/metropolitan-district-council/wolverhampton","703627","Falon Nameplates Limited","2172474","45.80","Materials for resale","130199651","03/01/2018","Bereavement Services","Crematorium","R4008"
"Wolverhampton City Council","http://opendatacommunities.org/id/metropolitan-district-council/wolverhampton","703644","Fast-Clean Group","112779","120.00","Contract Cleaning","130200636","03/01/2018","Maintenance Programme","Civic Centre Repairs & Maintenance","R2700"
"Wolverhampton City Council","http://opendatacommunities.org/id/metropolitan-district-council/wolverhampton","703644","Fast-Clean Group","112794","125.00","Contract Cleaning","130201068","17/01/2018","Maintenance Programme","Civic Centre Repairs & Maintenance","R2700"
"Wolverhampton City Council","http://opendatacommunities.org/id/metropolitan-district-council/wolverhampton","703653","Fbc Manby Bowdler Llp","My Ref: TP9674/LP 02 - Your ref:LZF/17049/2","1,308.00","Insurance - General","190413131","19/01/2018","Audit Services","Legal Liability","R4962"
"Wolverhampton City Council","http://opendatacommunities.org/id/metropolitan-district-council/wolverhampton","703653","Fbc Manby Bowdler Llp","My Ref: TP9674/LP -03 - Your ref:LZF/17049/2","1,815.00","Insurance - General","190413132","19/01/2018","Audit Services","Legal Liability","R4962"
"Wolverhampton City Council","http://opendatacommunities.org/id/metropolitan-district-council/wolverhampton","703658","Feast UK Limited","08457","296.17","Provisions (Resale)","130200807","05/01/2018","Leisure Services","Bert Williams Leisure Centre Caf�","R4102"
"Wolverhampton City Council","http://opendatacommunities.org/id/metropolitan-district-council/wolverhampton","703658","Feast UK Limited","08457","-296.17","Provisions (Resale)","130200807","05/01/2018","Leisure Services","Bert Williams Leisure Centre Caf�","R4102"
"Wolverhampton City Council","http://opendatacommunities.org/id/metropolitan-district-council/wolverhampton","703658","Feast UK Limited","08457","287.37","Provisions (Resale)","130200807","05/01/2018","Leisure Services","Bert Williams Leisure Centre Caf�","R4102"
"Wolverhampton City Council","http://opendatacommunities.org/id/metropolitan-district-council/wolverhampton","703658","Feast UK Limited","08457","8.80","Provisions (Resale)","130200807","05/01/2018","Leisure Services","Bert Williams Leisure Centre Caf�","R4102"
"Wolverhampton City Council","http://opendatacommunities.org/id/metropolitan-district-council/wolverhampton","703658","Feast UK Limited","08359","169.36","Provisions (Resale)","130201710","12/01/2018","Leisure Services","Bert Williams Leisure Centre Caf�","R4102"
"Wolverhampton City Council","http://opendatacommunities.org/id/metropolitan-district-council/wolverhampton","703658","Feast UK Limited","08278","748.50","Equipment - R & M","130193691","10/01/2018","Leisure Services","Bert Williams Leisure Centre Caf�","R4003"
"Wolverhampton City Council","http://opendatacommunities.org/id/metropolitan-district-council/wolverhampton","703658","Feast UK Limited","08505","153.66","Provisions (Resale)","130202087","17/01/2018","Leisure Services","Bert Williams Leisure Centre Caf�","R4102"
"Wolverhampton City Council","http://opendatacommunities.org/id/metropolitan-district-council/wolverhampton","703658","Feast UK Limited","08505","-153.66","Provisions (Resale)","130202087","17/01/2018","Leisure Services","Bert Williams Leisure Centre Caf�","R4102"
"Wolverhampton City Council","http://opendatacommunities.org/id/metropolitan-district-council/wolverhampton","703658","Feast UK Limited","08505","7.87","Provisions (Resale)","130202087","17/01/2018","Leisure Services","Bert Williams Leisure Centre Caf�","R4102"
"Wolverhampton City Council","http://opendatacommunities.org/id/metropolitan-district-council/wolverhampton","703658","Feast UK Limited","08505","153.66","Provisions (Resale)","130202087","17/01/2018","Leisure Services","Bert Williams Leisure Centre Caf�","R4102"
"Wolverhampton City Council","http://opendatacommunities.org/id/metropolitan-district-council/wolverhampton","703659","Federation Of Burial & Crem�N Authority","ME132/02-2018","953.80","Subscriptions","130202444","26/01/2018","Bereavement Services","Cemeteries","R4701"
"Wolverhampton City Council","http://opendatacommunities.org/id/metropolitan-district-council/wolverhampton","703659","Federation Of Burial & Crem�N Authority","ME132/02-2018","-953.80","Subscriptions","130202444","26/01/2018","Bereavement Services","Cemeteries","R4701"
"Wolverhampton City Council","http://opendatacommunities.org/id/metropolitan-district-council/wolverhampton","703659","Federation Of Burial & Crem�N Authority","ME132/02-2018","892.60","Subscriptions","130202444","26/01/2018","Bereavement Services","Cemeteries","R4701"
"Wolverhampton City Council","http://opendatacommunities.org/id/metropolitan-district-council/wolverhampton","703659","Federation Of Burial & Crem�N Authority","ME132/02-2018","61.20","Subscriptions","130202444","26/01/2018","Bereavement Services","Cemeteries","R4701"
"Wolverhampton City Council","http://opendatacommunities.org/id/metropolitan-district-council/wolverhampton","703667","Ferret Information Systems Limited","38573","190.00","Computing - Licences","130201880","31/01/2018","Independent Living Service","Adaptations Team","R4535"
"Wolverhampton City Council","http://opendatacommunities.org/id/metropolitan-district-council/wolverhampton","703669","Fibrous t/a Rowland Brothers Trade Ltd","62944","163.10","Materials","130199652","05/01/2018","Bereavement Services","Cemeteries","R4007"
"Wolverhampton City Council","http://opendatacommunities.org/id/metropolitan-district-council/wolverhampton","703686","Firewalker (UK) Limited","TFT Spring 2018 Inst 1","6,225.12","Grant Payments","190415171","26/01/2018","Early Years","Early Years Entitlement Funding for Disadvantaged 2 Year Olds","R4700"
"Wolverhampton City Council","http://opendatacommunities.org/id/metropolitan-district-council/wolverhampton","703686","Firewalker (UK) Limited","NEF Spring 2018 INST 1","16,983.00","TPP - Private Nursery Education Funding","190415159","26/01/2018","Early Years","Early Years Universal Entitlement for 3 and 4 Year Olds","R5035"
"Wolverhampton City Council","http://opendatacommunities.org/id/metropolitan-district-council/wolverhampton","703696","First Personnel Services PLC","00394569","286.43","Agency Staff","130201881","17/01/2018","Customer Services","City Direct","R1100"
"Wolverhampton City Council","http://opendatacommunities.org/id/metropolitan-district-council/wolverhampton","703696","First Personnel Services PLC","00391353","190.95","Agency Staff","130201200","10/01/2018","Customer Services","City Direct","R1100"
"Wolverhampton City Council","http://opendatacommunities.org/id/metropolitan-district-council/wolverhampton","703696","First Personnel Services PLC","00394169","388.27","Agency Staff","130200637","03/01/2018","Customer Services","City Direct","R1100"
"Wolverhampton City Council","http://opendatacommunities.org/id/metropolitan-district-council/wolverhampton","703696","First Personnel Services PLC","00394389","241.87","Agency Staff","130201069","12/01/2018","Customer Services","City Direct","R1100"
"Wolverhampton City Council","http://opendatacommunities.org/id/metropolitan-district-council/wolverhampton","703698","First Response (First Aid) Limited","20926","100.00","Training Expenses","130201882","26/01/2018","Human Resources","Centralised Training","R1650"
"Wolverhampton City Council","http://opendatacommunities.org/id/metropolitan-district-council/wolverhampton","703700","First Steps Childrens Nursery Limited","TFT Spring 2018 Inst 1","2,263.68","Grant Payments","190415171","26/01/2018","Early Years","Early Years Entitlement Funding for Disadvantaged 2 Year Olds","R4700"
"Wolverhampton City Council","http://opendatacommunities.org/id/metropolitan-district-council/wolverhampton","703700","First Steps Childrens Nursery Limited","NEF Spring 2018 INST 1","13,741.96","TPP - Private Nursery Education Funding","190415159","26/01/2018","Early Years","Early Years Universal Entitlement for 3 and 4 Year Olds","R5035"
"Wolverhampton City Council","http://opendatacommunities.org/id/metropolitan-district-council/wolverhampton","703743","Forensic Pathology Services","C 8544","337.20","Services - Professional Fees","130200639","03/01/2018","Democratic Services","Coroners Service","R4400"
"Wolverhampton City Council","http://opendatacommunities.org/id/metropolitan-district-council/wolverhampton","703743","Forensic Pathology Services","C 8518","297.60","Services - Professional Fees","130200638","03/01/2018","Democratic Services","Coroners Service","R4400"
"Wolverhampton City Council","http://opendatacommunities.org/id/metropolitan-district-council/wolverhampton","703743","Forensic Pathology Services","C 8555","307.50","Services - Professional Fees","130200640","03/01/2018","Democratic Services","Coroners Service","R4400"
"Wolverhampton City Council","http://opendatacommunities.org/id/metropolitan-district-council/wolverhampton","703745","Forensics Limited T/A Roar Forensics","0000028898","470.25","Services - Professional Fees","130199656","03/01/2018","Democratic Services","Coroners Service","R4400"
"Wolverhampton City Council","http://opendatacommunities.org/id/metropolitan-district-council/wolverhampton","703745","Forensics Limited T/A Roar Forensics","0000029104","294.50","Services - Professional Fees","130201553","10/01/2018","Democratic Services","Coroners Service","R4400"
"Wolverhampton City Council","http://opendatacommunities.org/id/metropolitan-district-council/wolverhampton","703745","Forensics Limited T/A Roar Forensics","0000029126","206.40","Services - Professional Fees","130203097","24/01/2018","Democratic Services","Coroners Service","R4400"
"Wolverhampton City Council","http://opendatacommunities.org/id/metropolitan-district-council/wolverhampton","703745","Forensics Limited T/A Roar Forensics","0000028984","351.50","Services - Professional Fees","130199658","03/01/2018","Democratic Services","Coroners Service","R4400"
"Wolverhampton City Council","http://opendatacommunities.org/id/metropolitan-district-council/wolverhampton","703745","Forensics Limited T/A Roar Forensics","0000029105","470.25","Services - Professional Fees","130201554","10/01/2018","Democratic Services","Coroners Service","R4400"
"Wolverhampton City Council","http://opendatacommunities.org/id/metropolitan-district-council/wolverhampton","703745","Forensics Limited T/A Roar Forensics","0000028931","389.50","Services - Professional Fees","130199657","03/01/2018","Democratic Services","Coroners Service","R4400"
"Wolverhampton City Council","http://opendatacommunities.org/id/metropolitan-district-council/wolverhampton","703745","Forensics Limited T/A Roar Forensics","0000029044","389.50","Services - Professional Fees","130201552","10/01/2018","Democratic Services","Coroners Service","R4400"
"Wolverhampton City Council","http://opendatacommunities.org/id/metropolitan-district-council/wolverhampton","703751","Forkers Limited","25295","76,968.75","Services - Professional Fees","130202713","24/01/2018","School Planning & Resources","Primary Expansion Feasibility Work","R4400"
"Wolverhampton City Council","http://opendatacommunities.org/id/metropolitan-district-council/wolverhampton","703823","Ft Leisure Limited","11737","300.00","Equipment - R & M","130203673","31/01/2018","Leisure Services","Bert Williams Leisure Centre","R4003"
"Wolverhampton City Council","http://opendatacommunities.org/id/metropolitan-district-council/wolverhampton","703849","Smirthwaite Ltd","155373","118.00","Equipment - Purchase","130203675","31/01/2018","Independent Living Service","Independent Living Service","R4000"
"Wolverhampton City Council","http://opendatacommunities.org/id/metropolitan-district-council/wolverhampton","703849","Smirthwaite Ltd","155373","32.00","Equipment - Purchase","130203675","31/01/2018","Independent Living Service","Independent Living Service","R4000"
"Wolverhampton City Council","http://opendatacommunities.org/id/metropolitan-district-council/wolverhampton","703849","Smirthwaite Ltd","155373","66.00","Equipment - Purchase","130203675","31/01/2018","Independent Living Service","Independent Living Service","R4000"
"Wolverhampton City Council","http://opendatacommunities.org/id/metropolitan-district-council/wolverhampton","703849","Smirthwaite Ltd","155373","62.00","Equipment - Purchase","130203675","31/01/2018","Independent Living Service","Independent Living Service","R4000"
"Wolverhampton City Council","http://opendatacommunities.org/id/metropolitan-district-council/wolverhampton","703872","G.M.Treble Limited","0000659931","368.00","R&M - Departmental planned (internal)","130201824","12/01/2018","Maintenance Programme","Civic Centre Repairs & Maintenance","R2000"
"Wolverhampton City Council","http://opendatacommunities.org/id/metropolitan-district-council/wolverhampton","703878","Gailarde Limited","18700166","10.00","Comms - Postage","130201711","17/01/2018","Older People Provider Services","Bradley Lodge Resource Centre","R4503"
"Wolverhampton City Council","http://opendatacommunities.org/id/metropolitan-district-council/wolverhampton","703878","Gailarde Limited","18700166","120.10","Equipment - Purchase","130201711","17/01/2018","Older People Provider Services","Bradley Lodge Resource Centre","R4000"
"Wolverhampton City Council","http://opendatacommunities.org/id/metropolitan-district-council/wolverhampton","703891","Gartec Limited","S004334","1,350.56","R&M - Departmental planned (external)","130202990","24/01/2018","Parking Services","Shopmobility","R2001"
"Wolverhampton City Council","http://opendatacommunities.org/id/metropolitan-district-council/wolverhampton","703895","Gatenby Sanderson Limited","35797","8,114.00","Training Expenses","130199659","03/01/2018","Human Resources","Centralised Training","R1650"
"Wolverhampton City Council","http://opendatacommunities.org/id/metropolitan-district-council/wolverhampton","703897","Gazebo Theatre-In-Education Co Limited","GZI13734","6,740.00","Rent","130196068","26/01/2018","Headstart","Headstart Hubs","R2200"
"Wolverhampton City Council","http://opendatacommunities.org/id/metropolitan-district-council/wolverhampton","703897","Gazebo Theatre-In-Education Co Limited","GZI13646","250.00","Room Hire","130173599","31/01/2018","Human Resources","Workforce Development","R2201"
"Wolverhampton City Council","http://opendatacommunities.org/id/metropolitan-district-council/wolverhampton","703897","Gazebo Theatre-In-Education Co Limited","GZI13646","300.00","Catering","130173599","31/01/2018","Human Resources","Workforce Development","R4100"
"Wolverhampton City Council","http://opendatacommunities.org/id/metropolitan-district-council/wolverhampton","703898","GB Group PLC","246196","67.47","Services - Professional Fees","130202088","26/01/2018","Human Resources","HR Advice","R4400"
"Wolverhampton City Council","http://opendatacommunities.org/id/metropolitan-district-council/wolverhampton","703898","GB Group PLC","242940","195.93","Services - Professional Fees","130199660","03/01/2018","Human Resources","HR Advice","R4400"
"Wolverhampton City Council","http://opendatacommunities.org/id/metropolitan-district-council/wolverhampton","703901","Geeky Creative","803","750.00","Services - Professional Fees","130201357","10/01/2018","Visitor Economy","Civic Halls Non-Direct Event Management Account","R4400"
"Wolverhampton City Council","http://opendatacommunities.org/id/metropolitan-district-council/wolverhampton","703924","George Weil & Sons Limited","803625","165.00","Equipment - Purchase","130200641","26/01/2018","Adult Education","Foundation Studies Delivery Area","R4000"
"Wolverhampton City Council","http://opendatacommunities.org/id/metropolitan-district-council/wolverhampton","703951","Glasdon Manufacturing Limited","742579","270.53","Equipment - Purchase","190410165","19/01/2018","Fleet Services","Fleet Management","R4000"
"Wolverhampton City Council","http://opendatacommunities.org/id/metropolitan-district-council/wolverhampton","703951","Glasdon Manufacturing Limited","742579","57.73","Equipment - Purchase","190410165","19/01/2018","Fleet Services","Fleet Management","R4000"
"Wolverhampton City Council","http://opendatacommunities.org/id/metropolitan-district-council/wolverhampton","703951","Glasdon Manufacturing Limited","742579","26.68","Equipment - Purchase","190410165","19/01/2018","Fleet Services","Fleet Management","R4000"
"Wolverhampton City Council","http://opendatacommunities.org/id/metropolitan-district-council/wolverhampton","703955","Glaze Auto Parts Limited","IN687855","23.70","Equipment - Purchase","190413601","19/01/2018","Fleet Services","Fleet Management","R4000"
"Wolverhampton City Council","http://opendatacommunities.org/id/metropolitan-district-council/wolverhampton","703955","Glaze Auto Parts Limited","IN687855","10.74","Equipment - Purchase","190413601","19/01/2018","Fleet Services","Fleet Management","R4000"
"Wolverhampton City Council","http://opendatacommunities.org/id/metropolitan-district-council/wolverhampton","703955","Glaze Auto Parts Limited","IN688746","5.73","Equipment - Purchase","190413606","19/01/2018","Fleet Services","Fleet Management","R4000"
"Wolverhampton City Council","http://opendatacommunities.org/id/metropolitan-district-council/wolverhampton","703955","Glaze Auto Parts Limited","IN670801","4.94","Equipment - Purchase","190410193","10/01/2018","Fleet Services","Fleet Management","R4000"
"Wolverhampton City Council","http://opendatacommunities.org/id/metropolitan-district-council/wolverhampton","703955","Glaze Auto Parts Limited","IN670801","2.96","Equipment - Purchase","190410193","10/01/2018","Fleet Services","Fleet Management","R4000"
"Wolverhampton City Council","http://opendatacommunities.org/id/metropolitan-district-council/wolverhampton","703955","Glaze Auto Parts Limited","IN670801","24.34","Equipment - Purchase","190410193","10/01/2018","Fleet Services","Fleet Management","R4000"
"Wolverhampton City Council","http://opendatacommunities.org/id/metropolitan-district-council/wolverhampton","703955","Glaze Auto Parts Limited","IN670801","83.66","Equipment - Purchase","190410193","10/01/2018","Fleet Services","Fleet Management","R4000"
"Wolverhampton City Council","http://opendatacommunities.org/id/metropolitan-district-council/wolverhampton","703955","Glaze Auto Parts Limited","IN687050","36.73","Equipment - Purchase","190410195","10/01/2018","Fleet Services","Fleet Management","R4000"
"Wolverhampton City Council","http://opendatacommunities.org/id/metropolitan-district-council/wolverhampton","703955","Glaze Auto Parts Limited","IN687050","16.24","Equipment - Purchase","190410195","10/01/2018","Fleet Services","Fleet Management","R4000"
"Wolverhampton City Council","http://opendatacommunities.org/id/metropolitan-district-council/wolverhampton","703955","Glaze Auto Parts Limited","IN687309","33.97","Equipment - Purchase","190410198","10/01/2018","Fleet Services","Fleet Management","R4000"
